Workbook

Sheet Display
F2: CQG SPDR® S&P® Bank ETF Performance | AB2: =RTD("cqg.rtd", ,"SystemInfo", "Linetime") -> 42915.67524
B5: Exchange Traded Funds Performance | S5: Top 15 Performing Companies
B6: Symbol | C6: Description | H6: Last | I6: NC | J6: %NC | K6: NC/ATR | L6: Open | M6: High | N6: Low | O6: Volume | Q6: Ratio
B7: KBE | C7: =RTD("cqg.rtd", ,"ContractData",B7, "LongDescription",, "T") -> SPDR S&P Bank ETF | H7: =RTD("cqg.rtd", ,"ContractData",B7, "LastTradeToday",, "T") -> 43.71 | I7: =RTD("cqg.rtd", ,"ContractData",B7, "NetLastTradeToday",, "T") -> 0.71 | J7: =RTD("cqg.rtd", ,"ContractData",B7, "PerCentNetLastTrade",, "T")/100 -> 0.01651162791 | K7: =I7/RTD("cqg.rtd",,"StudyData",B7, "ATR", "MaType=Sim,Period=10", "ATR","D","-1","ALL",,,"FALSE","T")/100 -> 0.01107644306 | L7: =RTD("cqg.rtd", ,"ContractData",B7, "OPen",, "T") -> 44.19 | M7: =RTD("cqg.rtd", ,"ContractData", B7, "HIgh",, "T") -> 44.32 | N7: =RTD("cqg.rtd", ,"ContractData",B7, "LOw",, "T") -> 43.25 | O7: =RTD("cqg.rtd", ,"ContractData",B7, "T_CVol",, "T") -> 6109758 | Q7: =IFERROR(O7/RTD("cqg.rtd",,"StudyData",B7, "MA", "InputChoice=Vol,MAType=Sim,Period=21", "MA","D","-1","all",,,,"T"),"") -> 2.538396584
B8: SPY | C8: =RTD("cqg.rtd", ,"ContractData",B8, "LongDescription",, "T") -> SPDR S&P 500 | H8: =RTD("cqg.rtd", ,"ContractData",B8, "LastTradeToday",, "T") -> 241.74 | I8: =RTD("cqg.rtd", ,"ContractData",B8, "NetLastTradeToday",, "T") -> -2.14 | J8: =RTD("cqg.rtd", ,"ContractData",B8, "PerCentNetLastTrade",, "T")/100 -> -0.008788861966 | K8: =I8/RTD("cqg.rtd",,"StudyData",B8, "ATR", "MaType=Sim,Period=10", "ATR","D","-1","ALL",,,"FALSE","T")/100 -> -0.01282204913 | L8: =RTD("cqg.rtd", ,"ContractData",B8, "OPen",, "T") -> 243.66 | M8: =RTD("cqg.rtd", ,"ContractData", B8, "HIgh",, "T") -> 243.72 | N8: =RTD("cqg.rtd", ,"ContractData",B8, "LOw",, "T") -> 239.95 | O8: =RTD("cqg.rtd", ,"ContractData",B8, "T_CVol",, "T") -> 105686001 | Q8: =IFERROR(O8/RTD("cqg.rtd",,"StudyData",B8, "MA", "InputChoice=Vol,MAType=Sim,Period=21", "MA","D","-1","all",,,,"T"),"") -> 1.510408586
B9: XLF | C9: =RTD("cqg.rtd", ,"ContractData",B9, "LongDescription",, "T") -> Financial Select Sector SPDR | H9: =RTD("cqg.rtd", ,"ContractData",B9, "LastTradeToday",, "T") -> 24.69 | I9: =RTD("cqg.rtd", ,"ContractData",B9, "NetLastTradeToday",, "T") -> 0.17 | J9: =RTD("cqg.rtd", ,"ContractData",B9, "PerCentNetLastTrade",, "T")/100 -> 0.006933115824 | K9: =I9/RTD("cqg.rtd",,"StudyData",B9, "ATR", "MaType=Sim,Period=10", "ATR","D","-1","ALL",,,"FALSE","T")/100 -> 0.00641509434 | L9: =RTD("cqg.rtd", ,"ContractData",B9, "OPen",, "T") -> 25.02 | M9: =RTD("cqg.rtd", ,"ContractData", B9, "HIgh",, "T") -> 25.02 | N9: =RTD("cqg.rtd", ,"ContractData",B9, "LOw",, "T") -> 24.51 | O9: =RTD("cqg.rtd", ,"ContractData",B9, "T_CVol",, "T") -> 118751030 | Q9: =IFERROR(O9/RTD("cqg.rtd",,"StudyData",B9, "MA", "InputChoice=Vol,MAType=Sim,Period=21", "MA","D","-1","all",,,,"T"),"") -> 1.54166316
B10: GDX | C10: =RTD("cqg.rtd", ,"ContractData",B10, "LongDescription",, "T") -> Market Vectors Gold Miners ETF | H10: =RTD("cqg.rtd", ,"ContractData",B10, "LastTradeToday",, "T") -> 21.96 | I10: =RTD("cqg.rtd", ,"ContractData",B10, "NetLastTradeToday",, "T") -> -0.48 | J10: =RTD("cqg.rtd", ,"ContractData",B10, "PerCentNetLastTrade",, "T")/100 -> -0.02139991083 | K10: =I10/RTD("cqg.rtd",,"StudyData",B10, "ATR", "MaType=Sim,Period=10", "ATR","D","-1","ALL",,,"FALSE","T")/100 -> -0.01304347826 | L10: =RTD("cqg.rtd", ,"ContractData",B10, "OPen",, "T") -> 22.16 | M10: =RTD("cqg.rtd", ,"ContractData", B10, "HIgh",, "T") -> 22.2 | N10: =RTD("cqg.rtd", ,"ContractData",B10, "LOw",, "T") -> 21.88 | O10: =RTD("cqg.rtd", ,"ContractData",B10, "T_CVol",, "T") -> 54536520 | Q10: =IFERROR(O10/RTD("cqg.rtd",,"StudyData",B10, "MA", "InputChoice=Vol,MAType=Sim,Period=21", "MA","D","-1","all",,,,"T"),"") -> 1.06418531
B11: FXI | C11: =RTD("cqg.rtd", ,"ContractData",B11, "LongDescription",, "T") -> iShares China Large-Cap ETF | H11: =RTD("cqg.rtd", ,"ContractData",B11, "LastTradeToday",, "T") -> 39.62 | I11: =RTD("cqg.rtd", ,"ContractData",B11, "NetLastTradeToday",, "T") -> -0.41 | J11: =RTD("cqg.rtd", ,"ContractData",B11, "PerCentNetLastTrade",, "T")/100 -> -0.01024231826 | K11: =I11/RTD("cqg.rtd",,"StudyData",B11, "ATR", "MaType=Sim,Period=10", "ATR","D","-1","ALL",,,"FALSE","T")/100 -> -0.0099756691 | L11: =RTD("cqg.rtd", ,"ContractData",B11, "OPen",, "T") -> 39.89 | M11: =RTD("cqg.rtd", ,"ContractData", B11, "HIgh",, "T") -> 39.91 | N11: =RTD("cqg.rtd", ,"ContractData",B11, "LOw",, "T") -> 39.36 | O11: =RTD("cqg.rtd", ,"ContractData",B11, "T_CVol",, "T") -> 20201856 | Q11: =IFERROR(O11/RTD("cqg.rtd",,"StudyData",B11, "MA", "InputChoice=Vol,MAType=Sim,Period=21", "MA","D","-1","all",,,,"T"),"") -> 1.425782168
B12: IWF | C12: =RTD("cqg.rtd", ,"ContractData",B12, "LongDescription",, "T") -> iShares Russell 1000 Growth ETF | H12: =RTD("cqg.rtd", ,"ContractData",B12, "LastTradeToday",, "T") -> 118.77 | I12: =RTD("cqg.rtd", ,"ContractData",B12, "NetLastTradeToday",, "T") -> -1.54 | J12: =RTD("cqg.rtd", ,"ContractData",B12, "PerCentNetLastTrade",, "T")/100 -> -0.01280026598 | K12: =I12/RTD("cqg.rtd",,"StudyData",B12, "ATR", "MaType=Sim,Period=10", "ATR","D","-1","ALL",,,"FALSE","T")/100 -> -0.01533864542 | L12: =RTD("cqg.rtd", ,"ContractData",B12, "OPen",, "T") -> 120.16 | M12: =RTD("cqg.rtd", ,"ContractData", B12, "HIgh",, "T") -> 120.16 | N12: =RTD("cqg.rtd", ,"ContractData",B12, "LOw",, "T") -> 117.91 | O12: =RTD("cqg.rtd", ,"ContractData",B12, "T_CVol",, "T") -> 1838292 | Q12: =IFERROR(O12/RTD("cqg.rtd",,"StudyData",B12, "MA", "InputChoice=Vol,MAType=Sim,Period=21", "MA","D","-1","all",,,,"T"),"") -> 0.8892002548
B13: IWO | C13: =RTD("cqg.rtd", ,"ContractData",B13, "LongDescription",, "T") -> iShares Russell 2000 Growth ETF | H13: =RTD("cqg.rtd", ,"ContractData",B13, "LastTradeToday",, "T") -> 168.84 | I13: =RTD("cqg.rtd", ,"ContractData",B13, "NetLastTradeToday",, "T") -> -1.74 | J13: =RTD("cqg.rtd", ,"ContractData",B13, "PerCentNetLastTrade",, "T")/100 -> -0.01020049244 | K13: =I13/RTD("cqg.rtd",,"StudyData",B13, "ATR", "MaType=Sim,Period=10", "ATR","D","-1","ALL",,,"FALSE","T")/100 -> -0.008508557457 | L13: =RTD("cqg.rtd", ,"ContractData",B13, "OPen",, "T") -> 170.99 | M13: =RTD("cqg.rtd", ,"ContractData", B13, "HIgh",, "T") -> 170.99 | N13: =RTD("cqg.rtd", ,"ContractData",B13, "LOw",, "T") -> 166.98 | O13: =RTD("cqg.rtd", ,"ContractData",B13, "T_CVol",, "T") -> 393516 | Q13: =IFERROR(O13/RTD("cqg.rtd",,"StudyData",B13, "MA", "InputChoice=Vol,MAType=Sim,Period=21", "MA","D","-1","all",,,,"T"),"") -> 0.7467679101
B14: EP | C14: =RTD("cqg.rtd", ,"ContractData",B14, "LongDescription",, "T") -> E-Mini S&P 500, Sep 17 | H14: =RTD("cqg.rtd", ,"ContractData",B14, "LastTradeToday",, "T") -> 2421.5 | I14: =RTD("cqg.rtd", ,"ContractData",B14, "NetLastTradeToday",, "T") -> -17 | J14: =RTD("cqg.rtd", ,"ContractData",B14, "PerCentNetLastTrade",, "T")/100 -> -0.006971498872 | K14: =I14/RTD("cqg.rtd",,"StudyData",B14, "ATR", "MaType=Sim,Period=10", "ATR","D","-1","ALL",,,"FALSE","T")/100 -> -0.009941520468 | L14: =RTD("cqg.rtd", ,"ContractData",B14, "OPen",, "T") -> 2442 | M14: =RTD("cqg.rtd", ,"ContractData", B14, "HIgh",, "T") -> 2445 | N14: =RTD("cqg.rtd", ,"ContractData",B14, "LOw",, "T") -> 2402.25 | O14: =RTD("cqg.rtd", ,"ContractData",B14, "T_CVol",, "T") -> 2329022 | Q14: =IFERROR(O14/RTD("cqg.rtd",,"StudyData",B14, "MA", "InputChoice=Vol,MAType=Sim,Period=21", "MA","D","-1","all",,,,"T"),"") -> 1.284552829
B15: XLE | C15: =RTD("cqg.rtd", ,"ContractData",B15, "LongDescription",, "T") -> Energy Select Sector SPDR | H15: =RTD("cqg.rtd", ,"ContractData",B15, "LastTradeToday",, "T") -> 64.62 | I15: =RTD("cqg.rtd", ,"ContractData",B15, "NetLastTradeToday",, "T") -> 0.14 | J15: =RTD("cqg.rtd", ,"ContractData",B15, "PerCentNetLastTrade",, "T")/100 -> 0.002170879206 | K15: =I15/RTD("cqg.rtd",,"StudyData",B15, "ATR", "MaType=Sim,Period=10", "ATR","D","-1","ALL",,,"FALSE","T")/100 -> 0.001510248112 | L15: =RTD("cqg.rtd", ,"ContractData",B15, "OPen",, "T") -> 64.68 | M15: =RTD("cqg.rtd", ,"ContractData", B15, "HIgh",, "T") -> 65.34 | N15: =RTD("cqg.rtd", ,"ContractData",B15, "LOw",, "T") -> 64.49 | O15: =RTD("cqg.rtd", ,"ContractData",B15, "T_CVol",, "T") -> 19018969 | Q15: =IFERROR(O15/RTD("cqg.rtd",,"StudyData",B15, "MA", "InputChoice=Vol,MAType=Sim,Period=21", "MA","D","-1","all",,,,"T"),"") -> 1.023401696
B16: RYT | C16: =RTD("cqg.rtd", ,"ContractData",B16, "LongDescription",, "T") -> Guggenheim S&P 500 Eq Wt Technology ETF | H16: =RTD("cqg.rtd", ,"ContractData",B16, "LastTradeToday",, "T") -> 125.17 | I16: =RTD("cqg.rtd", ,"ContractData",B16, "NetLastTradeToday",, "T") -> -2.14 | J16: =RTD("cqg.rtd", ,"ContractData",B16, "PerCentNetLastTrade",, "T")/100 -> -0.01680936297 | K16: =I16/RTD("cqg.rtd",,"StudyData",B16, "ATR", "MaType=Sim,Period=10", "ATR","D","-1","ALL",,,"FALSE","T")/100 -> -0.01443994602 | L16: =RTD("cqg.rtd", ,"ContractData",B16, "OPen",, "T") -> 126.88 | M16: =RTD("cqg.rtd", ,"ContractData", B16, "HIgh",, "T") -> 126.88 | N16: =RTD("cqg.rtd", ,"ContractData",B16, "LOw",, "T") -> 123.92 | O16: =RTD("cqg.rtd", ,"ContractData",B16, "T_CVol",, "T") -> 57563 | Q16: =IFERROR(O16/RTD("cqg.rtd",,"StudyData",B16, "MA", "InputChoice=Vol,MAType=Sim,Period=21", "MA","D","-1","all",,,,"T"),"") -> 0.8811645905
C17: Top 15 Description | H17: Last | I17: NC | J17: %NC | K17: NC/ATR | L17: Open | M17: High | N17: Low | O17: Volume | Q17: Ratio
A18: =TRIM(KBE!O1) -> S.US.RF | B18: News | C18: =RTD("cqg.rtd", ,"ContractData",A18, "LongDescription",, "T")&" ("&RIGHT(A18,LEN(A18)-5)&")" -> Regions Financial Corp (RF) | H18: =RTD("cqg.rtd", ,"ContractData",A18, "LastTradeToday",, "T") -> 14.66 | I18: =RTD("cqg.rtd", ,"ContractData",A18, "NetLastTradeToday",, "T") -> 0.57 | J18: =RTD("cqg.rtd", ,"ContractData",A18, "PerCentNetLastTrade",, "T")/100 -> 0.04045422285 | K18: =I18/RTD("cqg.rtd",,"StudyData",A18, "ATR", "MaType=Sim,Period=10", "ATR","D","-1","ALL",,,"FALSE","T")/100 -> 0.01979166667 | L18: =RTD("cqg.rtd", ,"ContractData",A18, "OPen",, "T") -> 14.63 | M18: =RTD("cqg.rtd", ,"ContractData", A18, "HIgh",, "T") -> 14.85 | N18: =RTD("cqg.rtd", ,"ContractData",A18, "LOw",, "T") -> 14.48 | O18: =RTD("cqg.rtd", ,"ContractData",A18, "T_CVol",, "T") -> 32445983 | Q18: =IFERROR(O18/RTD("cqg.rtd",,"StudyData",A18, "MA", "InputChoice=Vol,MAType=Sim,Period=21", "MA","D","-1","all",,,,"T"),"") -> 1.698054513 | R18: =KBE!Q1 -> https://finance.yahoo.com/quote/RF
A19: =TRIM(KBE!O2) -> S.US.BPOP | B19: News | C19: =RTD("cqg.rtd", ,"ContractData",A19, "LongDescription",, "T")&" ("&RIGHT(A19,LEN(A19)-5)&")" -> BanPonce Corp (BPOP) | H19: =RTD("cqg.rtd", ,"ContractData",A19, "LastTradeToday",, "T") -> 41.69 | I19: =RTD("cqg.rtd", ,"ContractData",A19, "NetLastTradeToday",, "T") -> 1.31 | J19: =RTD("cqg.rtd", ,"ContractData",A19, "PerCentNetLastTrade",, "T")/100 -> 0.03244180287 | K19: =I19/RTD("cqg.rtd",,"StudyData",A19, "ATR", "MaType=Sim,Period=10", "ATR","D","-1","ALL",,,"FALSE","T")/100 -> 0.01380400421 | L19: =RTD("cqg.rtd", ,"ContractData",A19, "OPen",, "T") -> 41.11 | M19: =RTD("cqg.rtd", ,"ContractData", A19, "HIgh",, "T") -> 42.06 | N19: =RTD("cqg.rtd", ,"ContractData",A19, "LOw",, "T") -> 41.11 | O19: =RTD("cqg.rtd", ,"ContractData",A19, "T_CVol",, "T") -> 729056 | Q19: =IFERROR(O19/RTD("cqg.rtd",,"StudyData",A19, "MA", "InputChoice=Vol,MAType=Sim,Period=21", "MA","D","-1","all",,,,"T"),"") -> 1.388341997 | R19: =KBE!Q2 -> https://finance.yahoo.com/quote/BPOP
A20: =TRIM(KBE!O3) -> S.US.WTFC | B20: News | C20: =RTD("cqg.rtd", ,"ContractData",A20, "LongDescription",, "T")&" ("&RIGHT(A20,LEN(A20)-5)&")" -> Wintrust Financial Corp (WTFC) | H20: =RTD("cqg.rtd", ,"ContractData",A20, "LastTradeToday",, "T") -> 77.03 | I20: =RTD("cqg.rtd", ,"ContractData",A20, "NetLastTradeToday",, "T") -> 2.17 | J20: =RTD("cqg.rtd", ,"ContractData",A20, "PerCentNetLastTrade",, "T")/100 -> 0.02898744323 | K20: =I20/RTD("cqg.rtd",,"StudyData",A20, "ATR", "MaType=Sim,Period=10", "ATR","D","-1","ALL",,,"FALSE","T")/100 -> 0.01660290742 | L20: =RTD("cqg.rtd", ,"ContractData",A20, "OPen",, "T") -> 76.15 | M20: =RTD("cqg.rtd", ,"ContractData", A20, "HIgh",, "T") -> 77.12 | N20: =RTD("cqg.rtd", ,"ContractData",A20, "LOw",, "T") -> 75.37 | O20: =RTD("cqg.rtd", ,"ContractData",A20, "T_CVol",, "T") -> 519129 | Q20: =IFERROR(O20/RTD("cqg.rtd",,"StudyData",A20, "MA", "InputChoice=Vol,MAType=Sim,Period=21", "MA","D","-1","all",,,,"T"),"") -> 1.139121931 | R20: =KBE!Q3 -> https://finance.yahoo.com/quote/WTFC
A21: =TRIM(KBE!O4) -> S.US.TCBI | B21: News | C21: =RTD("cqg.rtd", ,"ContractData",A21, "LongDescription",, "T")&" ("&RIGHT(A21,LEN(A21)-5)&")" -> Texas Capital Bancshares Inc (TCBI) | H21: =RTD("cqg.rtd", ,"ContractData",A21, "LastTradeToday",, "T") -> 77.4 | I21: =RTD("cqg.rtd", ,"ContractData",A21, "NetLastTradeToday",, "T") -> 2.1 | J21: =RTD("cqg.rtd", ,"ContractData",A21, "PerCentNetLastTrade",, "T")/100 -> 0.02788844622 | K21: =I21/RTD("cqg.rtd",,"StudyData",A21, "ATR", "MaType=Sim,Period=10", "ATR","D","-1","ALL",,,"FALSE","T")/100 -> 0.01069791136 | L21: =RTD("cqg.rtd", ,"ContractData",A21, "OPen",, "T") -> 77.05 | M21: =RTD("cqg.rtd", ,"ContractData", A21, "HIgh",, "T") -> 77.8 | N21: =RTD("cqg.rtd", ,"ContractData",A21, "LOw",, "T") -> 76.05 | O21: =RTD("cqg.rtd", ,"ContractData",A21, "T_CVol",, "T") -> 753998 | Q21: =IFERROR(O21/RTD("cqg.rtd",,"StudyData",A21, "MA", "InputChoice=Vol,MAType=Sim,Period=21", "MA","D","-1","all",,,,"T"),"") -> 1.250537585 | R21: =KBE!Q4 -> https://finance.yahoo.com/quote/TCBI
A22: =TRIM(KBE!O5) -> S.US.IBKC | B22: News | C22: =RTD("cqg.rtd", ,"ContractData",A22, "LongDescription",, "T")&" ("&RIGHT(A22,LEN(A22)-5)&")" -> IBERIABANK Corp (IBKC) | H22: =RTD("cqg.rtd", ,"ContractData",A22, "LastTradeToday",, "T") -> 81.8 | I22: =RTD("cqg.rtd", ,"ContractData",A22, "NetLastTradeToday",, "T") -> 2.2 | J22: =RTD("cqg.rtd", ,"ContractData",A22, "PerCentNetLastTrade",, "T")/100 -> 0.02763819095 | K22: =I22/RTD("cqg.rtd",,"StudyData",A22, "ATR", "MaType=Sim,Period=10", "ATR","D","-1","ALL",,,"FALSE","T")/100 -> 0.01563610519 | L22: =RTD("cqg.rtd", ,"ContractData",A22, "OPen",, "T") -> 81.25 | M22: =RTD("cqg.rtd", ,"ContractData", A22, "HIgh",, "T") -> 81.95 | N22: =RTD("cqg.rtd", ,"ContractData",A22, "LOw",, "T") -> 80.57 | O22: =RTD("cqg.rtd", ,"ContractData",A22, "T_CVol",, "T") -> 467812 | Q22: =IFERROR(O22/RTD("cqg.rtd",,"StudyData",A22, "MA", "InputChoice=Vol,MAType=Sim,Period=21", "MA","D","-1","all",,,,"T"),"") -> 1.09181063 | R22: =KBE!Q5 -> https://finance.yahoo.com/quote/IBKC
A23: =TRIM(KBE!O6) -> S.US.C | B23: News | C23: =RTD("cqg.rtd", ,"ContractData",A23, "LongDescription",, "T")&" ("&RIGHT(A23,LEN(A23)-5)&")" -> Citigroup Inc (C) | H23: =RTD("cqg.rtd", ,"ContractData",A23, "LastTradeToday",, "T") -> 66.98 | I23: =RTD("cqg.rtd", ,"ContractData",A23, "NetLastTradeToday",, "T") -> 1.8 | J23: =RTD("cqg.rtd", ,"ContractData",A23, "PerCentNetLastTrade",, "T")/100 -> 0.02761583308 | K23: =I23/RTD("cqg.rtd",,"StudyData",A23, "ATR", "MaType=Sim,Period=10", "ATR","D","-1","ALL",,,"FALSE","T")/100 -> 0.0212514758 | L23: =RTD("cqg.rtd", ,"ContractData",A23, "OPen",, "T") -> 67.65 | M23: =RTD("cqg.rtd", ,"ContractData", A23, "HIgh",, "T") -> 67.75 | N23: =RTD("cqg.rtd", ,"ContractData",A23, "LOw",, "T") -> 66.26 | O23: =RTD("cqg.rtd", ,"ContractData",A23, "T_CVol",, "T") -> 40675401 | Q23: =IFERROR(O23/RTD("cqg.rtd",,"StudyData",A23, "MA", "InputChoice=Vol,MAType=Sim,Period=21", "MA","D","-1","all",,,,"T"),"") -> 2.32343508 | R23: =KBE!Q6 -> https://finance.yahoo.com/quote/C
A24: =TRIM(KBE!O7) -> S.US.OZRK | B24: News | C24: =RTD("cqg.rtd", ,"ContractData",A24, "LongDescription",, "T")&" ("&RIGHT(A24,LEN(A24)-5)&")" -> Bank of the Ozarks (OZRK) | H24: =RTD("cqg.rtd", ,"ContractData",A24, "LastTradeToday",, "T") -> 47.11 | I24: =RTD("cqg.rtd", ,"ContractData",A24, "NetLastTradeToday",, "T") -> 1.25 | J24: =RTD("cqg.rtd", ,"ContractData",A24, "PerCentNetLastTrade",, "T")/100 -> 0.02725686873 | K24: =I24/RTD("cqg.rtd",,"StudyData",A24, "ATR", "MaType=Sim,Period=10", "ATR","D","-1","ALL",,,"FALSE","T")/100 -> 0.01139471285 | L24: =RTD("cqg.rtd", ,"ContractData",A24, "OPen",, "T") -> 46.84 | M24: =RTD("cqg.rtd", ,"ContractData", A24, "HIgh",, "T") -> 47.65 | N24: =RTD("cqg.rtd", ,"ContractData",A24, "LOw",, "T") -> 46.42 | O24: =RTD("cqg.rtd", ,"ContractData",A24, "T_CVol",, "T") -> 2105406 | Q24: =IFERROR(O24/RTD("cqg.rtd",,"StudyData",A24, "MA", "InputChoice=Vol,MAType=Sim,Period=21", "MA","D","-1","all",,,,"T"),"") -> 1.22122795 | R24: =KBE!Q7 -> https://finance.yahoo.com/quote/OZRK
A25: =TRIM(KBE!O8) -> S.US.WFC | B25: News | C25: =RTD("cqg.rtd", ,"ContractData",A25, "LongDescription",, "T")&" ("&RIGHT(A25,LEN(A25)-5)&")" -> Wells Fargo & Co New (WFC) | H25: =RTD("cqg.rtd", ,"ContractData",A25, "LastTradeToday",, "T") -> 55.78 | I25: =RTD("cqg.rtd", ,"ContractData",A25, "NetLastTradeToday",, "T") -> 1.45 | J25: =RTD("cqg.rtd", ,"ContractData",A25, "PerCentNetLastTrade",, "T")/100 -> 0.02668875391 | K25: =I25/RTD("cqg.rtd",,"StudyData",A25, "ATR", "MaType=Sim,Period=10", "ATR","D","-1","ALL",,,"FALSE","T")/100 -> 0.0185659411 | L25: =RTD("cqg.rtd", ,"ContractData",A25, "OPen",, "T") -> 55.65 | M25: =RTD("cqg.rtd", ,"ContractData", A25, "HIgh",, "T") -> 56.6 | N25: =RTD("cqg.rtd", ,"ContractData",A25, "LOw",, "T") -> 55.21 | O25: =RTD("cqg.rtd", ,"ContractData",A25, "T_CVol",, "T") -> 32339538 | Q25: =IFERROR(O25/RTD("cqg.rtd",,"StudyData",A25, "MA", "InputChoice=Vol,MAType=Sim,Period=21", "MA","D","-1","all",,,,"T"),"") -> 1.746455385 | R25: =KBE!Q8 -> https://finance.yahoo.com/quote/WFC
A26: =TRIM(KBE!O9) -> S.US.TCB | B26: News | C26: =RTD("cqg.rtd", ,"ContractData",A26, "LongDescription",, "T")&" ("&RIGHT(A26,LEN(A26)-5)&")" -> TCF Financial Corp (TCB) | H26: =RTD("cqg.rtd", ,"ContractData",A26, "LastTradeToday",, "T") -> 15.99 | I26: =RTD("cqg.rtd", ,"ContractData",A26, "NetLastTradeToday",, "T") -> 0.39 | J26: =RTD("cqg.rtd", ,"ContractData",A26, "PerCentNetLastTrade",, "T")/100 -> 0.025 | K26: =I26/RTD("cqg.rtd",,"StudyData",A26, "ATR", "MaType=Sim,Period=10", "ATR","D","-1","ALL",,,"FALSE","T")/100 -> 0.01147058824 | L26: =RTD("cqg.rtd", ,"ContractData",A26, "OPen",, "T") -> 16.07 | M26: =RTD("cqg.rtd", ,"ContractData", A26, "HIgh",, "T") -> 16.14 | N26: =RTD("cqg.rtd", ,"ContractData",A26, "LOw",, "T") -> 15.76 | O26: =RTD("cqg.rtd", ,"ContractData",A26, "T_CVol",, "T") -> 1273320 | Q26: =IFERROR(O26/RTD("cqg.rtd",,"StudyData",A26, "MA", "InputChoice=Vol,MAType=Sim,Period=21", "MA","D","-1","all",,,,"T"),"") -> 0.9092685976 | R26: =KBE!Q9 -> https://finance.yahoo.com/quote/TCB
A27: =TRIM(KBE!O10) -> S.US.SNV | B27: News | C27: =RTD("cqg.rtd", ,"ContractData",A27, "LongDescription",, "T")&" ("&RIGHT(A27,LEN(A27)-5)&")" -> Synovous Fin Corp (SNV) | H27: =RTD("cqg.rtd", ,"ContractData",A27, "LastTradeToday",, "T") -> 44.41 | I27: =RTD("cqg.rtd", ,"ContractData",A27, "NetLastTradeToday",, "T") -> 1.05 | J27: =RTD("cqg.rtd", ,"ContractData",A27, "PerCentNetLastTrade",, "T")/100 -> 0.02421586716 | K27: =I27/RTD("cqg.rtd",,"StudyData",A27, "ATR", "MaType=Sim,Period=10", "ATR","D","-1","ALL",,,"FALSE","T")/100 -> 0.01454293629 | L27: =RTD("cqg.rtd", ,"ContractData",A27, "OPen",, "T") -> 44.59 | M27: =RTD("cqg.rtd", ,"ContractData", A27, "HIgh",, "T") -> 44.76 | N27: =RTD("cqg.rtd", ,"ContractData",A27, "LOw",, "T") -> 43.68 | O27: =RTD("cqg.rtd", ,"ContractData",A27, "T_CVol",, "T") -> 922345 | Q27: =IFERROR(O27/RTD("cqg.rtd",,"StudyData",A27, "MA", "InputChoice=Vol,MAType=Sim,Period=21", "MA","D","-1","all",,,,"T"),"") -> 1.116091591 | R27: =KBE!Q10 -> https://finance.yahoo.com/quote/SNV | S27: Bottom 15 Performing Companies
A28: =TRIM(KBE!O11) -> S.US.HBHC | B28: News | C28: =RTD("cqg.rtd", ,"ContractData",A28, "LongDescription",, "T")&" ("&RIGHT(A28,LEN(A28)-5)&")" -> Hancock Hldg Co (HBHC) | H28: =RTD("cqg.rtd", ,"ContractData",A28, "LastTradeToday",, "T") -> 48.8 | I28: =RTD("cqg.rtd", ,"ContractData",A28, "NetLastTradeToday",, "T") -> 1.15 | J28: =RTD("cqg.rtd", ,"ContractData",A28, "PerCentNetLastTrade",, "T")/100 -> 0.0241343127 | K28: =I28/RTD("cqg.rtd",,"StudyData",A28, "ATR", "MaType=Sim,Period=10", "ATR","D","-1","ALL",,,"FALSE","T")/100 -> 0.01026785714 | L28: =RTD("cqg.rtd", ,"ContractData",A28, "OPen",, "T") -> 48.85 | M28: =RTD("cqg.rtd", ,"ContractData", A28, "HIgh",, "T") -> 49.35 | N28: =RTD("cqg.rtd", ,"ContractData",A28, "LOw",, "T") -> 48.55 | O28: =RTD("cqg.rtd", ,"ContractData",A28, "T_CVol",, "T") -> 910722 | Q28: =IFERROR(O28/RTD("cqg.rtd",,"StudyData",A28, "MA", "InputChoice=Vol,MAType=Sim,Period=21", "MA","D","-1","all",,,,"T"),"") -> 1.319365129 | R28: =KBE!Q11 -> https://finance.yahoo.com/quote/HBHC
A29: =TRIM(KBE!O12) -> S.US.ZION | B29: News | C29: =RTD("cqg.rtd", ,"ContractData",A29, "LongDescription",, "T")&" ("&RIGHT(A29,LEN(A29)-5)&")" -> Zions Bancorp (ZION) | H29: =RTD("cqg.rtd", ,"ContractData",A29, "LastTradeToday",, "T") -> 43.99 | I29: =RTD("cqg.rtd", ,"ContractData",A29, "NetLastTradeToday",, "T") -> 1.02 | J29: =RTD("cqg.rtd", ,"ContractData",A29, "PerCentNetLastTrade",, "T")/100 -> 0.02373749127 | K29: =I29/RTD("cqg.rtd",,"StudyData",A29, "ATR", "MaType=Sim,Period=10", "ATR","D","-1","ALL",,,"FALSE","T")/100 -> 0.01349206349 | L29: =RTD("cqg.rtd", ,"ContractData",A29, "OPen",, "T") -> 44.41 | M29: =RTD("cqg.rtd", ,"ContractData", A29, "HIgh",, "T") -> 44.85 | N29: =RTD("cqg.rtd", ,"ContractData",A29, "LOw",, "T") -> 43.38 | O29: =RTD("cqg.rtd", ,"ContractData",A29, "T_CVol",, "T") -> 4442441 | Q29: =IFERROR(O29/RTD("cqg.rtd",,"StudyData",A29, "MA", "InputChoice=Vol,MAType=Sim,Period=21", "MA","D","-1","all",,,,"T"),"") -> 1.384360564 | R29: =KBE!Q12 -> https://finance.yahoo.com/quote/ZION
A30: =TRIM(KBE!O13) -> S.US.COLB | B30: News | C30: =RTD("cqg.rtd", ,"ContractData",A30, "LongDescription",, "T")&" ("&RIGHT(A30,LEN(A30)-5)&")" -> Columbia Banking System (COLB) | H30: =RTD("cqg.rtd", ,"ContractData",A30, "LastTradeToday",, "T") -> 40.28 | I30: =RTD("cqg.rtd", ,"ContractData",A30, "NetLastTradeToday",, "T") -> 0.93 | J30: =RTD("cqg.rtd", ,"ContractData",A30, "PerCentNetLastTrade",, "T")/100 -> 0.02363405337 | K30: =I30/RTD("cqg.rtd",,"StudyData",A30, "ATR", "MaType=Sim,Period=10", "ATR","D","-1","ALL",,,"FALSE","T")/100 -> 0.01260162602 | L30: =RTD("cqg.rtd", ,"ContractData",A30, "OPen",, "T") -> 40.14 | M30: =RTD("cqg.rtd", ,"ContractData", A30, "HIgh",, "T") -> 40.42 | N30: =RTD("cqg.rtd", ,"ContractData",A30, "LOw",, "T") -> 39.72 | O30: =RTD("cqg.rtd", ,"ContractData",A30, "T_CVol",, "T") -> 324090 | Q30: =IFERROR(O30/RTD("cqg.rtd",,"StudyData",A30, "MA", "InputChoice=Vol,MAType=Sim,Period=21", "MA","D","-1","all",,,,"T"),"") -> 0.869156834 | R30: =KBE!Q13 -> https://finance.yahoo.com/quote/COLB
A31: =TRIM(KBE!O14) -> S.US.CHFC | B31: News | C31: =RTD("cqg.rtd", ,"ContractData",A31, "LongDescription",, "T")&" ("&RIGHT(A31,LEN(A31)-5)&")" -> Chemical Financial Corp (CHFC) | H31: =RTD("cqg.rtd", ,"ContractData",A31, "LastTradeToday",, "T") -> 48.51 | I31: =RTD("cqg.rtd", ,"ContractData",A31, "NetLastTradeToday",, "T") -> 1.08 | J31: =RTD("cqg.rtd", ,"ContractData",A31, "PerCentNetLastTrade",, "T")/100 -> 0.02277039848 | K31: =I31/RTD("cqg.rtd",,"StudyData",A31, "ATR", "MaType=Sim,Period=10", "ATR","D","-1","ALL",,,"FALSE","T")/100 -> 0.009773755656 | L31: =RTD("cqg.rtd", ,"ContractData",A31, "OPen",, "T") -> 48.13 | M31: =RTD("cqg.rtd", ,"ContractData", A31, "HIgh",, "T") -> 48.73 | N31: =RTD("cqg.rtd", ,"ContractData",A31, "LOw",, "T") -> 47.84 | O31: =RTD("cqg.rtd", ,"ContractData",A31, "T_CVol",, "T") -> 267947 | Q31: =IFERROR(O31/RTD("cqg.rtd",,"StudyData",A31, "MA", "InputChoice=Vol,MAType=Sim,Period=21", "MA","D","-1","all",,,,"T"),"") -> 0.721150578 | R31: =KBE!Q14 -> https://finance.yahoo.com/quote/CHFC
A32: =TRIM(KBE!O15) -> S.US.FITB | B32: News | C32: =RTD("cqg.rtd", ,"ContractData",A32, "LongDescription",, "T")&" ("&RIGHT(A32,LEN(A32)-5)&")" -> Fifth Third Bancorp (FITB) | H32: =RTD("cqg.rtd", ,"ContractData",A32, "LastTradeToday",, "T") -> 26.07 | I32: =RTD("cqg.rtd", ,"ContractData",A32, "NetLastTradeToday",, "T") -> 0.58 | J32: =RTD("cqg.rtd", ,"ContractData",A32, "PerCentNetLastTrade",, "T")/100 -> 0.02275402118 | K32: =I32/RTD("cqg.rtd",,"StudyData",A32, "ATR", "MaType=Sim,Period=10", "ATR","D","-1","ALL",,,"FALSE","T")/100 -> 0.01176470588 | L32: =RTD("cqg.rtd", ,"ContractData",A32, "OPen",, "T") -> 26.2 | M32: =RTD("cqg.rtd", ,"ContractData", A32, "HIgh",, "T") -> 26.69 | N32: =RTD("cqg.rtd", ,"ContractData",A32, "LOw",, "T") -> 25.91 | O32: =RTD("cqg.rtd", ,"ContractData",A32, "T_CVol",, "T") -> 10133295 | Q32: =IFERROR(O32/RTD("cqg.rtd",,"StudyData",A32, "MA", "InputChoice=Vol,MAType=Sim,Period=21", "MA","D","-1","all",,,,"T"),"") -> 1.580396848 | R32: =KBE!Q15 -> https://finance.yahoo.com/quote/FITB
C33: Bottom 15 Description | H33: Last | I33: NC | J33: %NC | K33: NC/ATR | L33: Open | M33: High | N33: Low | O33: Volume | Q33: Ratio
A34: =TRIM(KBE!O57) -> S.US.BOH | B34: News | C34: =RTD("cqg.rtd", ,"ContractData",A34, "LongDescription",, "T")&" ("&RIGHT(A34,LEN(A34)-5)&")" -> Hawaii Corporation (BOH) | H34: =RTD("cqg.rtd", ,"ContractData",A34, "LastTradeToday",, "T") -> 83.59 | I34: =RTD("cqg.rtd", ,"ContractData",A34, "NetLastTradeToday",, "T") -> 0.81 | J34: =RTD("cqg.rtd", ,"ContractData",A34, "PerCentNetLastTrade",, "T")/100 -> 0.009784972216 | K34: =I34/RTD("cqg.rtd",,"StudyData",A34, "ATR", "MaType=Sim,Period=10", "ATR","D","-1","ALL",,,"FALSE","T")/100 -> 0.005886627907 | L34: =RTD("cqg.rtd", ,"ContractData",A34, "OPen",, "T") -> 84.46 | M34: =RTD("cqg.rtd", ,"ContractData", A34, "HIgh",, "T") -> 84.46 | N34: =RTD("cqg.rtd", ,"ContractData",A34, "LOw",, "T") -> 82.69 | O34: =RTD("cqg.rtd", ,"ContractData",A34, "T_CVol",, "T") -> 226149 | Q34: =IFERROR(O34/RTD("cqg.rtd",,"StudyData",A34, "MA", "InputChoice=Vol,MAType=Sim,Period=21", "MA","D","-1","all",,,,"T"),"") -> 0.8644405152 | R34: =KBE!Q57 -> https://finance.yahoo.com/quote/BOH
A35: =TRIM(KBE!O58) -> S.US.CFG | B35: News | C35: =RTD("cqg.rtd", ,"ContractData",A35, "LongDescription",, "T")&" ("&RIGHT(A35,LEN(A35)-5)&")" -> Citizens Financial Group, Inc. (CFG) | H35: =RTD("cqg.rtd", ,"ContractData",A35, "LastTradeToday",, "T") -> 35.65 | I35: =RTD("cqg.rtd", ,"ContractData",A35, "NetLastTradeToday",, "T") -> 0.31 | J35: =RTD("cqg.rtd", ,"ContractData",A35, "PerCentNetLastTrade",, "T")/100 -> 0.008771929825 | K35: =I35/RTD("cqg.rtd",,"StudyData",A35, "ATR", "MaType=Sim,Period=10", "ATR","D","-1","ALL",,,"FALSE","T")/100 -> 0.004269972452 | L35: =RTD("cqg.rtd", ,"ContractData",A35, "OPen",, "T") -> 36.18 | M35: =RTD("cqg.rtd", ,"ContractData", A35, "HIgh",, "T") -> 36.73 | N35: =RTD("cqg.rtd", ,"ContractData",A35, "LOw",, "T") -> 35.18 | O35: =RTD("cqg.rtd", ,"ContractData",A35, "T_CVol",, "T") -> 5573440 | Q35: =IFERROR(O35/RTD("cqg.rtd",,"StudyData",A35, "MA", "InputChoice=Vol,MAType=Sim,Period=21", "MA","D","-1","all",,,,"T"),"") -> 1.134548531 | R35: =KBE!Q58 -> https://finance.yahoo.com/quote/CFG
A36: =TRIM(KBE!O59) -> S.US.BK | B36: News | C36: =RTD("cqg.rtd", ,"ContractData",A36, "LongDescription",, "T")&" ("&RIGHT(A36,LEN(A36)-5)&")" -> Bank of New York Co Inc (BK) | H36: =RTD("cqg.rtd", ,"ContractData",A36, "LastTradeToday",, "T") -> 51.01 | I36: =RTD("cqg.rtd", ,"ContractData",A36, "NetLastTradeToday",, "T") -> 0.41 | J36: =RTD("cqg.rtd", ,"ContractData",A36, "PerCentNetLastTrade",, "T")/100 -> 0.008102766798 | K36: =I36/RTD("cqg.rtd",,"StudyData",A36, "ATR", "MaType=Sim,Period=10", "ATR","D","-1","ALL",,,"FALSE","T")/100 -> 0.007649253731 | L36: =RTD("cqg.rtd", ,"ContractData",A36, "OPen",, "T") -> 51.54 | M36: =RTD("cqg.rtd", ,"ContractData", A36, "HIgh",, "T") -> 51.59 | N36: =RTD("cqg.rtd", ,"ContractData",A36, "LOw",, "T") -> 50.55 | O36: =RTD("cqg.rtd", ,"ContractData",A36, "T_CVol",, "T") -> 5052851 | Q36: =IFERROR(O36/RTD("cqg.rtd",,"StudyData",A36, "MA", "InputChoice=Vol,MAType=Sim,Period=21", "MA","D","-1","all",,,,"T"),"") -> 1.082372746 | R36: =KBE!Q59 -> https://finance.yahoo.com/quote/BK
A37: =TRIM(KBE!O60) -> S.US.FULT | B37: News | C37: =RTD("cqg.rtd", ,"ContractData",A37, "LongDescription",, "T")&" ("&RIGHT(A37,LEN(A37)-5)&")" -> Fulton Financial Corporation (FULT) | H37: =RTD("cqg.rtd", ,"ContractData",A37, "LastTradeToday",, "T") -> 19.15 | I37: =RTD("cqg.rtd", ,"ContractData",A37, "NetLastTradeToday",, "T") -> 0.15 | J37: =RTD("cqg.rtd", ,"ContractData",A37, "PerCentNetLastTrade",, "T")/100 -> 0.007894736842 | K37: =I37/RTD("cqg.rtd",,"StudyData",A37, "ATR", "MaType=Sim,Period=10", "ATR","D","-1","ALL",,,"FALSE","T")/100 -> 0.003816793893 | L37: =RTD("cqg.rtd", ,"ContractData",A37, "OPen",, "T") -> 19.25 | M37: =RTD("cqg.rtd", ,"ContractData", A37, "HIgh",, "T") -> 19.4 | N37: =RTD("cqg.rtd", ,"ContractData",A37, "LOw",, "T") -> 18.85 | O37: =RTD("cqg.rtd", ,"ContractData",A37, "T_CVol",, "T") -> 825787 | Q37: =IFERROR(O37/RTD("cqg.rtd",,"StudyData",A37, "MA", "InputChoice=Vol,MAType=Sim,Period=21", "MA","D","-1","all",,,,"T"),"") -> 0.8291792513 | R37: =KBE!Q60 -> https://finance.yahoo.com/quote/FULT
A38: =TRIM(KBE!O61) -> S.US.CFR | B38: News | C38: =RTD("cqg.rtd", ,"ContractData",A38, "LongDescription",, "T")&" ("&RIGHT(A38,LEN(A38)-5)&")" -> Cullen Frost Bankers Inc (CFR) | H38: =RTD("cqg.rtd", ,"ContractData",A38, "LastTradeToday",, "T") -> 94.12 | I38: =RTD("cqg.rtd", ,"ContractData",A38, "NetLastTradeToday",, "T") -> 0.72 | J38: =RTD("cqg.rtd", ,"ContractData",A38, "PerCentNetLastTrade",, "T")/100 -> 0.007708779443 | K38: =I38/RTD("cqg.rtd",,"StudyData",A38, "ATR", "MaType=Sim,Period=10", "ATR","D","-1","ALL",,,"FALSE","T")/100 -> 0.003053435115 | L38: =RTD("cqg.rtd", ,"ContractData",A38, "OPen",, "T") -> 96.38 | M38: =RTD("cqg.rtd", ,"ContractData", A38, "HIgh",, "T") -> 96.77 | N38: =RTD("cqg.rtd", ,"ContractData",A38, "LOw",, "T") -> 93.24 | O38: =RTD("cqg.rtd", ,"ContractData",A38, "T_CVol",, "T") -> 509666 | Q38: =IFERROR(O38/RTD("cqg.rtd",,"StudyData",A38, "MA", "InputChoice=Vol,MAType=Sim,Period=21", "MA","D","-1","all",,,,"T"),"") -> 1.08800114 | R38: =KBE!Q61 -> https://finance.yahoo.com/quote/CFR
A39: =TRIM(KBE!O62) -> S.US.SIVB | B39: News | C39: =RTD("cqg.rtd", ,"ContractData",A39, "LongDescription",, "T")&" ("&RIGHT(A39,LEN(A39)-5)&")" -> SVB Financial Group (SIVB) | H39: =RTD("cqg.rtd", ,"ContractData",A39, "LastTradeToday",, "T") -> 177.23 | I39: =RTD("cqg.rtd", ,"ContractData",A39, "NetLastTradeToday",, "T") -> 1.14 | J39: =RTD("cqg.rtd", ,"ContractData",A39, "PerCentNetLastTrade",, "T")/100 -> 0.006473962178 | K39: =I39/RTD("cqg.rtd",,"StudyData",A39, "ATR", "MaType=Sim,Period=10", "ATR","D","-1","ALL",,,"FALSE","T")/100 -> 0.00271170314 | L39: =RTD("cqg.rtd", ,"ContractData",A39, "OPen",, "T") -> 179.58 | M39: =RTD("cqg.rtd", ,"ContractData", A39, "HIgh",, "T") -> 181.49 | N39: =RTD("cqg.rtd", ,"ContractData",A39, "LOw",, "T") -> 175.89 | O39: =RTD("cqg.rtd", ,"ContractData",A39, "T_CVol",, "T") -> 475142 | Q39: =IFERROR(O39/RTD("cqg.rtd",,"StudyData",A39, "MA", "InputChoice=Vol,MAType=Sim,Period=21", "MA","D","-1","all",,,,"T"),"") -> 0.7323948562 | R39: =KBE!Q62 -> https://finance.yahoo.com/quote/SIVB
A40: =TRIM(KBE!O63) -> S.US.MTG | B40: News | C40: =RTD("cqg.rtd", ,"ContractData",A40, "LongDescription",, "T")&" ("&RIGHT(A40,LEN(A40)-5)&")" -> MGIC Investment Corp (MTG) | H40: =RTD("cqg.rtd", ,"ContractData",A40, "LastTradeToday",, "T") -> 11.23 | I40: =RTD("cqg.rtd", ,"ContractData",A40, "NetLastTradeToday",, "T") -> 0.05 | J40: =RTD("cqg.rtd", ,"ContractData",A40, "PerCentNetLastTrade",, "T")/100 -> 0.004472271914 | K40: =I40/RTD("cqg.rtd",,"StudyData",A40, "ATR", "MaType=Sim,Period=10", "ATR","D","-1","ALL",,,"FALSE","T")/100 -> 0.002262443439 | L40: =RTD("cqg.rtd", ,"ContractData",A40, "OPen",, "T") -> 11.27 | M40: =RTD("cqg.rtd", ,"ContractData", A40, "HIgh",, "T") -> 11.37 | N40: =RTD("cqg.rtd", ,"ContractData",A40, "LOw",, "T") -> 11.12 | O40: =RTD("cqg.rtd", ,"ContractData",A40, "T_CVol",, "T") -> 3367192 | Q40: =IFERROR(O40/RTD("cqg.rtd",,"StudyData",A40, "MA", "InputChoice=Vol,MAType=Sim,Period=21", "MA","D","-1","all",,,,"T"),"") -> 0.9757355457 | R40: =KBE!Q63 -> https://finance.yahoo.com/quote/MTG
A41: =TRIM(KBE!O64) -> S.US.EWBC | B41: News | C41: =RTD("cqg.rtd", ,"ContractData",A41, "LongDescription",, "T")&" ("&RIGHT(A41,LEN(A41)-5)&")" -> East West Bancorp (EWBC) | H41: =RTD("cqg.rtd", ,"ContractData",A41, "LastTradeToday",, "T") -> 58.46 | I41: =RTD("cqg.rtd", ,"ContractData",A41, "NetLastTradeToday",, "T") -> 0.21 | J41: =RTD("cqg.rtd", ,"ContractData",A41, "PerCentNetLastTrade",, "T")/100 -> 0.003605150215 | K41: =I41/RTD("cqg.rtd",,"StudyData",A41, "ATR", "MaType=Sim,Period=10", "ATR","D","-1","ALL",,,"FALSE","T")/100 -> 0.001708706265 | L41: =RTD("cqg.rtd", ,"ContractData",A41, "OPen",, "T") -> 59.35 | M41: =RTD("cqg.rtd", ,"ContractData", A41, "HIgh",, "T") -> 60.04 | N41: =RTD("cqg.rtd", ,"ContractData",A41, "LOw",, "T") -> 57.73 | O41: =RTD("cqg.rtd", ,"ContractData",A41, "T_CVol",, "T") -> 1235559 | Q41: =IFERROR(O41/RTD("cqg.rtd",,"StudyData",A41, "MA", "InputChoice=Vol,MAType=Sim,Period=21", "MA","D","-1","all",,,,"T"),"") -> 0.7809557391 | R41: =KBE!Q64 -> https://finance.yahoo.com/quote/EWBC
A42: =TRIM(KBE!O65) -> S.US.NTRS | B42: News | C42: =RTD("cqg.rtd", ,"ContractData",A42, "LongDescription",, "T")&" ("&RIGHT(A42,LEN(A42)-5)&")" -> Northern Trust Corp (NTRS) | H42: =RTD("cqg.rtd", ,"ContractData",A42, "LastTradeToday",, "T") -> 97 | I42: =RTD("cqg.rtd", ,"ContractData",A42, "NetLastTradeToday",, "T") -> 0.34 | J42: =RTD("cqg.rtd", ,"ContractData",A42, "PerCentNetLastTrade",, "T")/100 -> 0.003517483964 | K42: =I42/RTD("cqg.rtd",,"StudyData",A42, "ATR", "MaType=Sim,Period=10", "ATR","D","-1","ALL",,,"FALSE","T")/100 -> 0.002717825739 | L42: =RTD("cqg.rtd", ,"ContractData",A42, "OPen",, "T") -> 98.03 | M42: =RTD("cqg.rtd", ,"ContractData", A42, "HIgh",, "T") -> 98.72 | N42: =RTD("cqg.rtd", ,"ContractData",A42, "LOw",, "T") -> 95.85 | O42: =RTD("cqg.rtd", ,"ContractData",A42, "T_CVol",, "T") -> 1439981 | Q42: =IFERROR(O42/RTD("cqg.rtd",,"StudyData",A42, "MA", "InputChoice=Vol,MAType=Sim,Period=21", "MA","D","-1","all",,,,"T"),"") -> 1.351617162 | R42: =KBE!Q65 -> https://finance.yahoo.com/quote/NTRS
A43: =TRIM(KBE!O66) -> S.US.FRC | B43: News | C43: =RTD("cqg.rtd", ,"ContractData",A43, "LongDescription",, "T")&" ("&RIGHT(A43,LEN(A43)-5)&")" -> First Republic Bank (FRC) | H43: =RTD("cqg.rtd", ,"ContractData",A43, "LastTradeToday",, "T") -> 100.56 | I43: =RTD("cqg.rtd", ,"ContractData",A43, "NetLastTradeToday",, "T") -> -0.15 | J43: =RTD("cqg.rtd", ,"ContractData",A43, "PerCentNetLastTrade",, "T")/100 -> -0.001489425082 | K43: =I43/RTD("cqg.rtd",,"StudyData",A43, "ATR", "MaType=Sim,Period=10", "ATR","D","-1","ALL",,,"FALSE","T")/100 -> -0.001043841336 | L43: =RTD("cqg.rtd", ,"ContractData",A43, "OPen",, "T") -> 102.43 | M43: =RTD("cqg.rtd", ,"ContractData", A43, "HIgh",, "T") -> 103.69 | N43: =RTD("cqg.rtd", ,"ContractData",A43, "LOw",, "T") -> 99.29 | O43: =RTD("cqg.rtd", ,"ContractData",A43, "T_CVol",, "T") -> 968827 | Q43: =IFERROR(O43/RTD("cqg.rtd",,"StudyData",A43, "MA", "InputChoice=Vol,MAType=Sim,Period=21", "MA","D","-1","all",,,,"T"),"") -> 1.093471211 | R43: =KBE!Q66 -> https://finance.yahoo.com/quote/FRC
A44: =TRIM(KBE!O67) -> S.US.WAFD | B44: News | C44: =RTD("cqg.rtd", ,"ContractData",A44, "LongDescription",, "T")&" ("&RIGHT(A44,LEN(A44)-5)&")" -> Washington Federal, Inc. (WAFD) | H44: =RTD("cqg.rtd", ,"ContractData",A44, "LastTradeToday",, "T") -> 33.45 | I44: =RTD("cqg.rtd", ,"ContractData",A44, "NetLastTradeToday",, "T") -> -0.05 | J44: =RTD("cqg.rtd", ,"ContractData",A44, "PerCentNetLastTrade",, "T")/100 -> -0.001492537313 | K44: =I44/RTD("cqg.rtd",,"StudyData",A44, "ATR", "MaType=Sim,Period=10", "ATR","D","-1","ALL",,,"FALSE","T")/100 -> -0.0007704160247 | L44: =RTD("cqg.rtd", ,"ContractData",A44, "OPen",, "T") -> 34.15 | M44: =RTD("cqg.rtd", ,"ContractData", A44, "HIgh",, "T") -> 34.5 | N44: =RTD("cqg.rtd", ,"ContractData",A44, "LOw",, "T") -> 33.2 | O44: =RTD("cqg.rtd", ,"ContractData",A44, "T_CVol",, "T") -> 844469 | Q44: =IFERROR(O44/RTD("cqg.rtd",,"StudyData",A44, "MA", "InputChoice=Vol,MAType=Sim,Period=21", "MA","D","-1","all",,,,"T"),"") -> 1.92491038 | R44: =KBE!Q67 -> https://finance.yahoo.com/quote/WAFD
A45: =TRIM(KBE!O68) -> S.US.CIT | B45: News | C45: =RTD("cqg.rtd", ,"ContractData",A45, "LongDescription",, "T")&" ("&RIGHT(A45,LEN(A45)-5)&")" -> CIT Group Inc. (CIT) | H45: =RTD("cqg.rtd", ,"ContractData",A45, "LastTradeToday",, "T") -> 48.51 | I45: =RTD("cqg.rtd", ,"ContractData",A45, "NetLastTradeToday",, "T") -> -0.1 | J45: =RTD("cqg.rtd", ,"ContractData",A45, "PerCentNetLastTrade",, "T")/100 -> -0.002057189879 | K45: =I45/RTD("cqg.rtd",,"StudyData",A45, "ATR", "MaType=Sim,Period=10", "ATR","D","-1","ALL",,,"FALSE","T")/100 -> -0.001248439451 | L45: =RTD("cqg.rtd", ,"ContractData",A45, "OPen",, "T") -> 49.25 | M45: =RTD("cqg.rtd", ,"ContractData", A45, "HIgh",, "T") -> 49.54 | N45: =RTD("cqg.rtd", ,"ContractData",A45, "LOw",, "T") -> 48.07 | O45: =RTD("cqg.rtd", ,"ContractData",A45, "T_CVol",, "T") -> 1739020 | Q45: =IFERROR(O45/RTD("cqg.rtd",,"StudyData",A45, "MA", "InputChoice=Vol,MAType=Sim,Period=21", "MA","D","-1","all",,,,"T"),"") -> 0.6620506693 | R45: =KBE!Q68 -> https://finance.yahoo.com/quote/CIT
A46: =TRIM(KBE!O69) -> S.US.MTB | B46: News | C46: =RTD("cqg.rtd", ,"ContractData",A46, "LongDescription",, "T")&" ("&RIGHT(A46,LEN(A46)-5)&")" -> M&T Bank Corp (MTB) | H46: =RTD("cqg.rtd", ,"ContractData",A46, "LastTradeToday",, "T") -> 161.18 | I46: =RTD("cqg.rtd", ,"ContractData",A46, "NetLastTradeToday",, "T") -> -0.47 | J46: =RTD("cqg.rtd", ,"ContractData",A46, "PerCentNetLastTrade",, "T")/100 -> -0.002907516239 | K46: =I46/RTD("cqg.rtd",,"StudyData",A46, "ATR", "MaType=Sim,Period=10", "ATR","D","-1","ALL",,,"FALSE","T")/100 -> -0.002080566622 | L46: =RTD("cqg.rtd", ,"ContractData",A46, "OPen",, "T") -> 163.11 | M46: =RTD("cqg.rtd", ,"ContractData", A46, "HIgh",, "T") -> 163.9 | N46: =RTD("cqg.rtd", ,"ContractData",A46, "LOw",, "T") -> 159.29 | O46: =RTD("cqg.rtd", ,"ContractData",A46, "T_CVol",, "T") -> 1347653 | Q46: =IFERROR(O46/RTD("cqg.rtd",,"StudyData",A46, "MA", "InputChoice=Vol,MAType=Sim,Period=21", "MA","D","-1","all",,,,"T"),"") -> 2.100118123 | R46: =KBE!Q69 -> https://finance.yahoo.com/quote/MTB
A47: =TRIM(KBE!O70) -> S.US.USB | B47: News | C47: =RTD("cqg.rtd", ,"ContractData",A47, "LongDescription",, "T")&" ("&RIGHT(A47,LEN(A47)-5)&")" -> U S Bancorp (USB) | H47: =RTD("cqg.rtd", ,"ContractData",A47, "LastTradeToday",, "T") -> 51.78 | I47: =RTD("cqg.rtd", ,"ContractData",A47, "NetLastTradeToday",, "T") -> -0.2 | J47: =RTD("cqg.rtd", ,"ContractData",A47, "PerCentNetLastTrade",, "T")/100 -> -0.003847633705 | K47: =I47/RTD("cqg.rtd",,"StudyData",A47, "ATR", "MaType=Sim,Period=10", "ATR","D","-1","ALL",,,"FALSE","T")/100 -> -0.003003003003 | L47: =RTD("cqg.rtd", ,"ContractData",A47, "OPen",, "T") -> 52.86 | M47: =RTD("cqg.rtd", ,"ContractData", A47, "HIgh",, "T") -> 52.99 | N47: =RTD("cqg.rtd", ,"ContractData",A47, "LOw",, "T") -> 51.62 | O47: =RTD("cqg.rtd", ,"ContractData",A47, "T_CVol",, "T") -> 9967619 | Q47: =IFERROR(O47/RTD("cqg.rtd",,"StudyData",A47, "MA", "InputChoice=Vol,MAType=Sim,Period=21", "MA","D","-1","all",,,,"T"),"") -> 1.52823394 | R47: =KBE!Q70 -> https://finance.yahoo.com/quote/USB
A48: =TRIM(KBE!O71) -> S.US.RDN | B48: News | C48: =RTD("cqg.rtd", ,"ContractData",A48, "LongDescription",, "T")&" ("&RIGHT(A48,LEN(A48)-5)&")" -> Radian Group (RDN) | H48: =RTD("cqg.rtd", ,"ContractData",A48, "LastTradeToday",, "T") -> 16.31 | I48: =RTD("cqg.rtd", ,"ContractData",A48, "NetLastTradeToday",, "T") -> -0.14 | J48: =RTD("cqg.rtd", ,"ContractData",A48, "PerCentNetLastTrade",, "T")/100 -> -0.008510638298 | K48: =I48/RTD("cqg.rtd",,"StudyData",A48, "ATR", "MaType=Sim,Period=10", "ATR","D","-1","ALL",,,"FALSE","T")/100 -> -0.004778156997 | L48: =RTD("cqg.rtd", ,"ContractData",A48, "OPen",, "T") -> 16.72 | M48: =RTD("cqg.rtd", ,"ContractData", A48, "HIgh",, "T") -> 16.73 | N48: =RTD("cqg.rtd", ,"ContractData",A48, "LOw",, "T") -> 16.24 | O48: =RTD("cqg.rtd", ,"ContractData",A48, "T_CVol",, "T") -> 3259481 | Q48: =IFERROR(O48/RTD("cqg.rtd",,"StudyData",A48, "MA", "InputChoice=Vol,MAType=Sim,Period=21", "MA","D","-1","all",,,,"T"),"") -> 1.784795502 | R48: =KBE!Q71 -> https://finance.yahoo.com/quote/RDN
C49: CQG Inc., Copyright © 2017 | G49: Designed by Thom Hartle | J49: Standard & Poor’s® and S&P® are registered trademarks of Standard & Poor’s Financial Services LLC, and have been licensed for use by Guggenheim Investments and its affiliates. | Z49: =KBE!AB72 -> 0.9154929577 | AA49: of the stocks in the ETF are higher today
J52: =R34 -> https://finance.yahoo.com/quote/BOH
J53: =R48 -> https://finance.yahoo.com/quote/RDN

Sheet KBE (hidden)
A1: Associated Banc-Corp | B1: ASB | C1: ="S.US."&B1 -> S.US.ASB | D1: =RTD("cqg.rtd", ,"ContractData",C1, "LongDescription",, "T") -> Associated Banc-Corp | E1: =RTD("cqg.rtd", ,"ContractData",C1, "Open",, "T") -> 25.35 | F1: =RTD("cqg.rtd", ,"ContractData",C1, "High",, "T") -> 25.55 | G1: =RTD("cqg.rtd", ,"ContractData",C1, "Low",, "T") -> 24.87 | H1: =RTD("cqg.rtd", ,"ContractData",C1, "LastTradeToday",, "T") -> 25.2 | I1: =RTD("cqg.rtd", ,"ContractData",C1, "NetLastTradeToday",, "T") -> 0.4 | J1: =RTD("cqg.rtd", ,"ContractData",C1, "PerCentNetLastTrade",, "T")/100 -> 0.01612903226 | K1: =RTD("cqg.rtd", ,"ContractData", C1, "T_CVol",, "T") -> 1040694 | L1: 1 | M1: =RANK($J1,$J$1:J$71)+COUNTIF($J$1:J1,J1)-1 -> 40 | N1: =C1 -> S.US.ASB | O1: =VLOOKUP($L1,$M$1:$N$71,2,FALSE) -> S.US.RF | P1: =RTD("cqg.rtd", ,"ContractData",O1, "PerCentNetLastTrade",, "T")/100 -> 0.04045422285 | Q1: ="https://finance.yahoo.com/quote/"&RIGHT(O1,(LEN(O1)-5)) -> https://finance.yahoo.com/quote/RF | S1: =IF(P1>=0,P1,NA()) -> 0.04045422285 | T1: =IF(P1>=0,NA(),-1*P1) ->  | V1: =RTD("cqg.rtd", ,"ContractData",O1, "LongDescription",, "T") -> Regions Financial Corp | Y1: =IFERROR(S1,P1) -> 0.04045422285 | AA1: =IF(S1="NA()",0,1) -> 1 | AB1: =IFERROR(AA1,0) -> 1 | AD1: =IFERROR(S1,"") -> 0.04045422285 | AE1: =IFERROR(T1,"") ->  | AF1: =IF(AE1="","",Y1) -> 
A2: Bank of America Corp | B2: BAC | C2: ="S.US."&B2 -> S.US.BAC | D2: =RTD("cqg.rtd", ,"ContractData",C2, "LongDescription",, "T") -> Bank of America Corp | E2: =RTD("cqg.rtd", ,"ContractData",C2, "Open",, "T") -> 24.58 | F2: =RTD("cqg.rtd", ,"ContractData",C2, "High",, "T") -> 24.67 | G2: =RTD("cqg.rtd", ,"ContractData",C2, "Low",, "T") -> 24.03 | H2: =RTD("cqg.rtd", ,"ContractData",C2, "LastTradeToday",, "T") -> 24.32 | I2: =RTD("cqg.rtd", ,"ContractData",C2, "NetLastTradeToday",, "T") -> 0.44 | J2: =RTD("cqg.rtd", ,"ContractData",C2, "PerCentNetLastTrade",, "T")/100 -> 0.01842546064 | K2: =RTD("cqg.rtd", ,"ContractData", C2, "T_CVol",, "T") -> 146734294 | L2: =L1+1 -> 2 | M2: =RANK($J2,$J$1:J$71)+COUNTIF($J$1:J2,J2)-1 -> 29 | N2: =C2 -> S.US.BAC | O2: S.US.BPOP | P2: =RTD("cqg.rtd", ,"ContractData",O2, "PerCentNetLastTrade",, "T")/100 -> 0.03244180287 | Q2: ="https://finance.yahoo.com/quote/"&RIGHT(O2,(LEN(O2)-5)) -> https://finance.yahoo.com/quote/BPOP | S2: =IF(P2>=0,P2,NA()) -> 0.03244180287 | T2: =IF(P2>=0,NA(),-1*P2) ->  | V2: =RTD("cqg.rtd", ,"ContractData",O2, "LongDescription",, "T") -> BanPonce Corp | Y2: =IFERROR(S2,P2) -> 0.03244180287 | AA2: =IF(S2="NA()",0,1) -> 1 | AB2: =IFERROR(AA2,0) -> 1 | AD2: =IFERROR(S2,"") -> 0.03244180287 | AE2: =IFERROR(T2,"") ->  | AF2: =IF(AE2="","",Y2) -> 
A3: BB&T Corp | B3: BBT | C3: S.US.BBT | D3: =RTD("cqg.rtd", ,"ContractData",C3, "LongDescription",, "T") -> BB&T Corp | E3: =RTD("cqg.rtd", ,"ContractData",C3, "Open",, "T") -> 45.82 | F3: =RTD("cqg.rtd", ,"ContractData",C3, "High",, "T") -> 46.5 | G3: =RTD("cqg.rtd", ,"ContractData",C3, "Low",, "T") -> 44.99 | H3: =RTD("cqg.rtd", ,"ContractData",C3, "LastTradeToday",, "T") -> 45.61 | I3: =RTD("cqg.rtd", ,"ContractData",C3, "NetLastTradeToday",, "T") -> 0.83 | J3: =RTD("cqg.rtd", ,"ContractData",C3, "PerCentNetLastTrade",, "T")/100 -> 0.01853506029 | K3: =RTD("cqg.rtd", ,"ContractData", C3, "T_CVol",, "T") -> 5906383 | L3: =L2+1 -> 3 | M3: =RANK($J3,$J$1:J$71)+COUNTIF($J$1:J3,J3)-1 -> 28 | N3: S.US.BBT | O3: S.US.WTFC | P3: =RTD("cqg.rtd", ,"ContractData",O3, "PerCentNetLastTrade",, "T")/100 -> 0.02898744323 | Q3: https://finance.yahoo.com/quote/WTFC | S3: 0.02898744323 | V3: =RTD("cqg.rtd", ,"ContractData",O3, "LongDescription",, "T") -> Wintrust Financial Corp | Y3: 0.02898744323 | AA3: 1 | AB3: 1 | AD3: 0.02898744323
A4: Bank of New York Co Inc | B4: BK | C4: S.US.BK | D4: =RTD("cqg.rtd", ,"ContractData",C4, "LongDescription",, "T") -> Bank of New York Co Inc | E4: =RTD("cqg.rtd", ,"ContractData",C4, "Open",, "T") -> 51.54 | F4: =RTD("cqg.rtd", ,"ContractData",C4, "High",, "T") -> 51.59 | G4: =RTD("cqg.rtd", ,"ContractData",C4, "Low",, "T") -> 50.55 | H4: =RTD("cqg.rtd", ,"ContractData",C4, "LastTradeToday",, "T") -> 51.01 | I4: =RTD("cqg.rtd", ,"ContractData",C4, "NetLastTradeToday",, "T") -> 0.41 | J4: =RTD("cqg.rtd", ,"ContractData",C4, "PerCentNetLastTrade",, "T")/100 -> 0.008102766798 | K4: =RTD("cqg.rtd", ,"ContractData", C4, "T_CVol",, "T") -> 5052851 | L4: 4 | M4: =RANK($J4,$J$1:J$71)+COUNTIF($J$1:J4,J4)-1 -> 59 | N4: S.US.BK | O4: S.US.TCBI | P4: =RTD("cqg.rtd", ,"ContractData",O4, "PerCentNetLastTrade",, "T")/100 -> 0.02788844622 | Q4: https://finance.yahoo.com/quote/TCBI | S4: 0.02788844622 | V4: =RTD("cqg.rtd", ,"ContractData",O4, "LongDescription",, "T") -> Texas Capital Bancshares Inc | Y4: 0.02788844622 | AA4: 1 | AB4: 1 | AD4: 0.02788844622
A5: BankUnited, Inc. | B5: BKU | C5: S.US.BKU | D5: =RTD("cqg.rtd", ,"ContractData",C5, "LongDescription",, "T") -> BankUnited, Inc. | E5: =RTD("cqg.rtd", ,"ContractData",C5, "Open",, "T") -> 34.02 | F5: =RTD("cqg.rtd", ,"ContractData",C5, "High",, "T") -> 34.37 | G5: =RTD("cqg.rtd", ,"ContractData",C5, "Low",, "T") -> 33.58 | H5: =RTD("cqg.rtd", ,"ContractData",C5, "LastTradeToday",, "T") -> 33.94 | I5: =RTD("cqg.rtd", ,"ContractData",C5, "NetLastTradeToday",, "T") -> 0.66 | J5: =RTD("cqg.rtd", ,"ContractData",C5, "PerCentNetLastTrade",, "T")/100 -> 0.01983173077 | K5: =RTD("cqg.rtd", ,"ContractData", C5, "T_CVol",, "T") -> 1525253 | L5: 5 | M5: =RANK($J5,$J$1:J$71)+COUNTIF($J$1:J5,J5)-1 -> 22 | N5: S.US.BKU | O5: S.US.IBKC | P5: =RTD("cqg.rtd", ,"ContractData",O5, "PerCentNetLastTrade",, "T")/100 -> 0.02763819095 | Q5: https://finance.yahoo.com/quote/IBKC | S5: 0.02763819095 | V5: =RTD("cqg.rtd", ,"ContractData",O5, "LongDescription",, "T") -> IBERIABANK Corp | Y5: 0.02763819095 | AA5: 1 | AB5: 1 | AD5: 0.02763819095
A6: Hawaii Corporation | B6: BOH | C6: S.US.BOH | D6: =RTD("cqg.rtd", ,"ContractData",C6, "LongDescription",, "T") -> Hawaii Corporation | E6: =RTD("cqg.rtd", ,"ContractData",C6, "Open",, "T") -> 84.46 | F6: =RTD("cqg.rtd", ,"ContractData",C6, "High",, "T") -> 84.46 | G6: =RTD("cqg.rtd", ,"ContractData",C6, "Low",, "T") -> 82.69 | H6: =RTD("cqg.rtd", ,"ContractData",C6, "LastTradeToday",, "T") -> 83.59 | I6: =RTD("cqg.rtd", ,"ContractData",C6, "NetLastTradeToday",, "T") -> 0.81 | J6: =RTD("cqg.rtd", ,"ContractData",C6, "PerCentNetLastTrade",, "T")/100 -> 0.009784972216 | K6: =RTD("cqg.rtd", ,"ContractData", C6, "T_CVol",, "T") -> 226149 | L6: 6 | M6: =RANK($J6,$J$1:J$71)+COUNTIF($J$1:J6,J6)-1 -> 57 | N6: S.US.BOH | O6: S.US.C | P6: =RTD("cqg.rtd", ,"ContractData",O6, "PerCentNetLastTrade",, "T")/100 -> 0.02761583308 | Q6: https://finance.yahoo.com/quote/C | S6: 0.02761583308 | V6: =RTD("cqg.rtd", ,"ContractData",O6, "LongDescription",, "T") -> Citigroup Inc | Y6: 0.02761583308 | AA6: 1 | AB6: 1 | AD6: 0.02761583308
A7: BanPonce Corp | B7: BPOP | C7: S.US.BPOP | D7: =RTD("cqg.rtd", ,"ContractData",C7, "LongDescription",, "T") -> BanPonce Corp | E7: =RTD("cqg.rtd", ,"ContractData",C7, "Open",, "T") -> 41.11 | F7: =RTD("cqg.rtd", ,"ContractData",C7, "High",, "T") -> 42.06 | G7: =RTD("cqg.rtd", ,"ContractData",C7, "Low",, "T") -> 41.11 | H7: =RTD("cqg.rtd", ,"ContractData",C7, "LastTradeToday",, "T") -> 41.69 | I7: =RTD("cqg.rtd", ,"ContractData",C7, "NetLastTradeToday",, "T") -> 1.31 | J7: =RTD("cqg.rtd", ,"ContractData",C7, "PerCentNetLastTrade",, "T")/100 -> 0.03244180287 | K7: =RTD("cqg.rtd", ,"ContractData", C7, "T_CVol",, "T") -> 729056 | L7: 7 | M7: =RANK($J7,$J$1:J$71)+COUNTIF($J$1:J7,J7)-1 -> 2 | N7: S.US.BPOP | O7: S.US.OZRK | P7: =RTD("cqg.rtd", ,"ContractData",O7, "PerCentNetLastTrade",, "T")/100 -> 0.02725686873 | Q7: https://finance.yahoo.com/quote/OZRK | S7: 0.02725686873 | V7: =RTD("cqg.rtd", ,"ContractData",O7, "LongDescription",, "T") -> Bank of the Ozarks | Y7: 0.02725686873 | AA7: 1 | AB7: 1 | AD7: 0.02725686873
A8: BANCORPSOUTH INC | B8: BXS | C8: S.US.BXS | D8: =RTD("cqg.rtd", ,"ContractData",C8, "LongDescription",, "T") -> BANCORPSOUTH INC | E8: =RTD("cqg.rtd", ,"ContractData",C8, "Open",, "T") -> 30.95 | F8: =RTD("cqg.rtd", ,"ContractData",C8, "High",, "T") -> 31.2 | G8: =RTD("cqg.rtd", ,"ContractData",C8, "Low",, "T") -> 30.27 | H8: =RTD("cqg.rtd", ,"ContractData",C8, "LastTradeToday",, "T") -> 30.75 | I8: =RTD("cqg.rtd", ,"ContractData",C8, "NetLastTradeToday",, "T") -> 0.45 | J8: =RTD("cqg.rtd", ,"ContractData",C8, "PerCentNetLastTrade",, "T")/100 -> 0.01485148515 | K8: =RTD("cqg.rtd", ,"ContractData", C8, "T_CVol",, "T") -> 478761 | L8: 8 | M8: =RANK($J8,$J$1:J$71)+COUNTIF($J$1:J8,J8)-1 -> 45 | N8: S.US.BXS | O8: S.US.WFC | P8: =RTD("cqg.rtd", ,"ContractData",O8, "PerCentNetLastTrade",, "T")/100 -> 0.02668875391 | Q8: https://finance.yahoo.com/quote/WFC | S8: 0.02668875391 | V8: =RTD("cqg.rtd", ,"ContractData",O8, "LongDescription",, "T") -> Wells Fargo & Co New | Y8: 0.02668875391 | AA8: 1 | AB8: 1 | AD8: 0.02668875391
A9: Citigroup Inc | B9: C | C9: S.US.C | D9: =RTD("cqg.rtd", ,"ContractData",C9, "LongDescription",, "T") -> Citigroup Inc | E9: =RTD("cqg.rtd", ,"ContractData",C9, "Open",, "T") -> 67.65 | F9: =RTD("cqg.rtd", ,"ContractData",C9, "High",, "T") -> 67.75 | G9: =RTD("cqg.rtd", ,"ContractData",C9, "Low",, "T") -> 66.26 | H9: =RTD("cqg.rtd", ,"ContractData",C9, "LastTradeToday",, "T") -> 66.98 | I9: =RTD("cqg.rtd", ,"ContractData",C9, "NetLastTradeToday",, "T") -> 1.8 | J9: =RTD("cqg.rtd", ,"ContractData",C9, "PerCentNetLastTrade",, "T")/100 -> 0.02761583308 | K9: =RTD("cqg.rtd", ,"ContractData", C9, "T_CVol",, "T") -> 40675401 | L9: 9 | M9: =RANK($J9,$J$1:J$71)+COUNTIF($J$1:J9,J9)-1 -> 6 | N9: S.US.C | O9: S.US.TCB | P9: =RTD("cqg.rtd", ,"ContractData",O9, "PerCentNetLastTrade",, "T")/100 -> 0.025 | Q9: https://finance.yahoo.com/quote/TCB | S9: 0.025 | V9: =RTD("cqg.rtd", ,"ContractData",O9, "LongDescription",, "T") -> TCF Financial Corp | Y9: 0.025 | AA9: 1 | AB9: 1 | AD9: 0.025
A10: Cathay Bancorp Inc | B10: CATY | C10: S.US.CATY | D10: =RTD("cqg.rtd", ,"ContractData",C10, "LongDescription",, "T") -> Cathay Bancorp Inc | E10: =RTD("cqg.rtd", ,"ContractData",C10, "Open",, "T") -> 38.42 | F10: =RTD("cqg.rtd", ,"ContractData",C10, "High",, "T") -> 38.58 | G10: =RTD("cqg.rtd", ,"ContractData",C10, "Low",, "T") -> 37.59 | H10: =RTD("cqg.rtd", ,"ContractData",C10, "LastTradeToday",, "T") -> 38.09 | I10: =RTD("cqg.rtd", ,"ContractData",C10, "NetLastTradeToday",, "T") -> 0.68 | J10: =RTD("cqg.rtd", ,"ContractData",C10, "PerCentNetLastTrade",, "T")/100 -> 0.01817695803 | K10: =RTD("cqg.rtd", ,"ContractData", C10, "T_CVol",, "T") -> 380766 | L10: 10 | M10: =RANK($J10,$J$1:J$71)+COUNTIF($J$1:J10,J10)-1 -> 31 | N10: S.US.CATY | O10: S.US.SNV | P10: =RTD("cqg.rtd", ,"ContractData",O10, "PerCentNetLastTrade",, "T")/100 -> 0.02421586716 | Q10: https://finance.yahoo.com/quote/SNV | S10: 0.02421586716 | V10: =RTD("cqg.rtd", ,"ContractData",O10, "LongDescription",, "T") -> Synovous Fin Corp | Y10: 0.02421586716 | AA10: 1 | AB10: 1 | AD10: 0.02421586716
A11: Commerce Bancshares Inc | B11: CBSH | C11: S.US.CBSH | D11: =RTD("cqg.rtd", ,"ContractData",C11, "LongDescription",, "T") -> Commerce Bancshares Inc | E11: =RTD("cqg.rtd", ,"ContractData",C11, "Open",, "T") -> 57.69 | F11: =RTD("cqg.rtd", ,"ContractData",C11, "High",, "T") -> 57.81 | G11: =RTD("cqg.rtd", ,"ContractData",C11, "Low",, "T") -> 56.6 | H11: =RTD("cqg.rtd", ,"ContractData",C11, "LastTradeToday",, "T") -> 57.33 | I11: =RTD("cqg.rtd", ,"ContractData",C11, "NetLastTradeToday",, "T") -> 0.6 | J11: =RTD("cqg.rtd", ,"ContractData",C11, "PerCentNetLastTrade",, "T")/100 -> 0.0105764146 | K11: =RTD("cqg.rtd", ,"ContractData", C11, "T_CVol",, "T") -> 394361 | L11: 11 | M11: =RANK($J11,$J$1:J$71)+COUNTIF($J$1:J11,J11)-1 -> 53 | N11: S.US.CBSH | O11: S.US.HBHC | P11: =RTD("cqg.rtd", ,"ContractData",O11, "PerCentNetLastTrade",, "T")/100 -> 0.0241343127 | Q11: https://finance.yahoo.com/quote/HBHC | S11: 0.0241343127 | V11: =RTD("cqg.rtd", ,"ContractData",O11, "LongDescription",, "T") -> Hancock Hldg Co | Y11: 0.0241343127 | AA11: 1 | AB11: 1 | AD11: 0.0241343127
A12: Community Bank System, Inc. | B12: CBU | C12: S.US.CBU | D12: =RTD("cqg.rtd", ,"ContractData",C12, "LongDescription",, "T") -> Community Bank System, Inc. | E12: =RTD("cqg.rtd", ,"ContractData",C12, "Open",, "T") -> 58 | F12: =RTD("cqg.rtd", ,"ContractData",C12, "High",, "T") -> 58 | G12: =RTD("cqg.rtd", ,"ContractData",C12, "Low",, "T") -> 55.64 | H12: =RTD("cqg.rtd", ,"ContractData",C12, "LastTradeToday",, "T") -> 56.53 | I12: =RTD("cqg.rtd", ,"ContractData",C12, "NetLastTradeToday",, "T") -> 0.89 | J12: =RTD("cqg.rtd", ,"ContractData",C12, "PerCentNetLastTrade",, "T")/100 -> 0.01599568656 | K12: =RTD("cqg.rtd", ,"ContractData", C12, "T_CVol",, "T") -> 142271 | L12: 12 | M12: =RANK($J12,$J$1:J$71)+COUNTIF($J$1:J12,J12)-1 -> 41 | N12: S.US.CBU | O12: S.US.ZION | P12: =RTD("cqg.rtd", ,"ContractData",O12, "PerCentNetLastTrade",, "T")/100 -> 0.02373749127 | Q12: https://finance.yahoo.com/quote/ZION | S12: 0.02373749127 | V12: =RTD("cqg.rtd", ,"ContractData",O12, "LongDescription",, "T") -> Zions Bancorp | Y12: 0.02373749127 | AA12: 1 | AB12: 1 | AD12: 0.02373749127
A13: Citizens Financial Group, Inc. | B13: CFG | C13: S.US.CFG | D13: =RTD("cqg.rtd", ,"ContractData",C13, "LongDescription",, "T") -> Citizens Financial Group, Inc. | E13: =RTD("cqg.rtd", ,"ContractData",C13, "Open",, "T") -> 36.18 | F13: =RTD("cqg.rtd", ,"ContractData",C13, "High",, "T") -> 36.73 | G13: =RTD("cqg.rtd", ,"ContractData",C13, "Low",, "T") -> 35.18 | H13: =RTD("cqg.rtd", ,"ContractData",C13, "LastTradeToday",, "T") -> 35.65 | I13: =RTD("cqg.rtd", ,"ContractData",C13, "NetLastTradeToday",, "T") -> 0.31 | J13: =RTD("cqg.rtd", ,"ContractData",C13, "PerCentNetLastTrade",, "T")/100 -> 0.008771929825 | K13: =RTD("cqg.rtd", ,"ContractData", C13, "T_CVol",, "T") -> 5573440 | L13: 13 | M13: =RANK($J13,$J$1:J$71)+COUNTIF($J$1:J13,J13)-1 -> 58 | N13: S.US.CFG | O13: S.US.COLB | P13: =RTD("cqg.rtd", ,"ContractData",O13, "PerCentNetLastTrade",, "T")/100 -> 0.02363405337 | Q13: https://finance.yahoo.com/quote/COLB | S13: 0.02363405337 | V13: =RTD("cqg.rtd", ,"ContractData",O13, "LongDescription",, "T") -> Columbia Banking System | Y13: 0.02363405337 | AA13: 1 | AB13: 1 | AD13: 0.02363405337
A14: Cullen Frost Bankers Inc | B14: CFR | C14: S.US.CFR | D14: =RTD("cqg.rtd", ,"ContractData",C14, "LongDescription",, "T") -> Cullen Frost Bankers Inc | E14: =RTD("cqg.rtd", ,"ContractData",C14, "Open",, "T") -> 96.38 | F14: =RTD("cqg.rtd", ,"ContractData",C14, "High",, "T") -> 96.77 | G14: =RTD("cqg.rtd", ,"ContractData",C14, "Low",, "T") -> 93.24 | H14: =RTD("cqg.rtd", ,"ContractData",C14, "LastTradeToday",, "T") -> 94.12 | I14: =RTD("cqg.rtd", ,"ContractData",C14, "NetLastTradeToday",, "T") -> 0.72 | J14: =RTD("cqg.rtd", ,"ContractData",C14, "PerCentNetLastTrade",, "T")/100 -> 0.007708779443 | K14: =RTD("cqg.rtd", ,"ContractData", C14, "T_CVol",, "T") -> 509666 | L14: 14 | M14: =RANK($J14,$J$1:J$71)+COUNTIF($J$1:J14,J14)-1 -> 61 | N14: S.US.CFR | O14: S.US.CHFC | P14: =RTD("cqg.rtd", ,"ContractData",O14, "PerCentNetLastTrade",, "T")/100 -> 0.02277039848 | Q14: https://finance.yahoo.com/quote/CHFC | S14: 0.02277039848 | V14: =RTD("cqg.rtd", ,"ContractData",O14, "LongDescription",, "T") -> Chemical Financial Corp | Y14: 0.02277039848 | AA14: 1 | AB14: 1 | AD14: 0.02277039848
A15: Chemical Financial Corp | B15: CHFC | C15: S.US.CHFC | D15: =RTD("cqg.rtd", ,"ContractData",C15, "LongDescription",, "T") -> Chemical Financial Corp | E15: =RTD("cqg.rtd", ,"ContractData",C15, "Open",, "T") -> 48.13 | F15: =RTD("cqg.rtd", ,"ContractData",C15, "High",, "T") -> 48.73 | G15: =RTD("cqg.rtd", ,"ContractData",C15, "Low",, "T") -> 47.84 | H15: =RTD("cqg.rtd", ,"ContractData",C15, "LastTradeToday",, "T") -> 48.51 | I15: =RTD("cqg.rtd", ,"ContractData",C15, "NetLastTradeToday",, "T") -> 1.08 | J15: =RTD("cqg.rtd", ,"ContractData",C15, "PerCentNetLastTrade",, "T")/100 -> 0.02277039848 | K15: =RTD("cqg.rtd", ,"ContractData", C15, "T_CVol",, "T") -> 267947 | L15: 15 | M15: =RANK($J15,$J$1:J$71)+COUNTIF($J$1:J15,J15)-1 -> 14 | N15: S.US.CHFC | O15: S.US.FITB | P15: =RTD("cqg.rtd", ,"ContractData",O15, "PerCentNetLastTrade",, "T")/100 -> 0.02275402118 | Q15: https://finance.yahoo.com/quote/FITB | S15: 0.02275402118 | V15: =RTD("cqg.rtd", ,"ContractData",O15, "LongDescription",, "T") -> Fifth Third Bancorp | Y15: 0.02275402118 | AA15: 1 | AB15: 1 | AD15: 0.02275402118
A16: CIT Group Inc. | B16: CIT | C16: S.US.CIT | D16: =RTD("cqg.rtd", ,"ContractData",C16, "LongDescription",, "T") -> CIT Group Inc. | E16: =RTD("cqg.rtd", ,"ContractData",C16, "Open",, "T") -> 49.25 | F16: =RTD("cqg.rtd", ,"ContractData",C16, "High",, "T") -> 49.54 | G16: =RTD("cqg.rtd", ,"ContractData",C16, "Low",, "T") -> 48.07 | H16: =RTD("cqg.rtd", ,"ContractData",C16, "LastTradeToday",, "T") -> 48.51 | I16: =RTD("cqg.rtd", ,"ContractData",C16, "NetLastTradeToday",, "T") -> -0.1 | J16: =RTD("cqg.rtd", ,"ContractData",C16, "PerCentNetLastTrade",, "T")/100 -> -0.002057189879 | K16: =RTD("cqg.rtd", ,"ContractData", C16, "T_CVol",, "T") -> 1739020 | L16: 16 | M16: =RANK($J16,$J$1:J$71)+COUNTIF($J$1:J16,J16)-1 -> 68 | N16: S.US.CIT | O16: S.US.CVBF | P16: =RTD("cqg.rtd", ,"ContractData",O16, "PerCentNetLastTrade",, "T")/100 -> 0.02257336343 | Q16: https://finance.yahoo.com/quote/CVBF | S16: 0.02257336343 | V16: =RTD("cqg.rtd", ,"ContractData",O16, "LongDescription",, "T") -> CVB Financial Corp | Y16: 0.02257336343 | AA16: 1 | AB16: 1 | AD16: 0.02257336343
A17: Comerica Inc | B17: CMA | C17: S.US.CMA | D17: =RTD("cqg.rtd", ,"ContractData",C17, "LongDescription",, "T") -> Comerica Inc | E17: =RTD("cqg.rtd", ,"ContractData",C17, "Open",, "T") -> 73.78 | F17: =RTD("cqg.rtd", ,"ContractData",C17, "High",, "T") -> 74.97 | G17: =RTD("cqg.rtd", ,"ContractData",C17, "Low",, "T") -> 72.13 | H17: =RTD("cqg.rtd", ,"ContractData",C17, "LastTradeToday",, "T") -> 72.79 | I17: =RTD("cqg.rtd", ,"ContractData",C17, "NetLastTradeToday",, "T") -> 0.85 | J17: =RTD("cqg.rtd", ,"ContractData",C17, "PerCentNetLastTrade",, "T")/100 -> 0.01181540172 | K17: =RTD("cqg.rtd", ,"ContractData", C17, "T_CVol",, "T") -> 2187041 | L17: 17 | M17: =RANK($J17,$J$1:J$71)+COUNTIF($J$1:J17,J17)-1 -> 51 | N17: S.US.CMA | O17: S.US.STL | P17: =RTD("cqg.rtd", ,"ContractData",O17, "PerCentNetLastTrade",, "T")/100 -> 0.02169197397 | Q17: https://finance.yahoo.com/quote/STL | S17: 0.02169197397 | V17: =RTD("cqg.rtd", ,"ContractData",O17, "LongDescription",, "T") -> Sterling Bancorp | Y17: 0.02169197397 | AA17: 1 | AB17: 1 | AD17: 0.02169197397
A18: Columbia Banking System | B18: COLB | C18: S.US.COLB | D18: =RTD("cqg.rtd", ,"ContractData",C18, "LongDescription",, "T") -> Columbia Banking System | E18: =RTD("cqg.rtd", ,"ContractData",C18, "Open",, "T") -> 40.14 | F18: =RTD("cqg.rtd", ,"ContractData",C18, "High",, "T") -> 40.42 | G18: =RTD("cqg.rtd", ,"ContractData",C18, "Low",, "T") -> 39.72 | H18: =RTD("cqg.rtd", ,"ContractData",C18, "LastTradeToday",, "T") -> 40.28 | I18: =RTD("cqg.rtd", ,"ContractData",C18, "NetLastTradeToday",, "T") -> 0.93 | J18: =RTD("cqg.rtd", ,"ContractData",C18, "PerCentNetLastTrade",, "T")/100 -> 0.02363405337 | K18: =RTD("cqg.rtd", ,"ContractData", C18, "T_CVol",, "T") -> 324090 | L18: 18 | M18: =RANK($J18,$J$1:J$71)+COUNTIF($J$1:J18,J18)-1 -> 13 | N18: S.US.COLB | O18: S.US.PB | P18: =RTD("cqg.rtd", ,"ContractData",O18, "PerCentNetLastTrade",, "T")/100 -> 0.02132027795 | Q18: https://finance.yahoo.com/quote/PB | S18: 0.02132027795 | V18: =RTD("cqg.rtd", ,"ContractData",O18, "LongDescription",, "T") -> Prosperity Bancshares Inc. | Y18: 0.02132027795 | AA18: 1 | AB18: 1 | AD18: 0.02132027795
A19: CVB Financial Corp | B19: CVBF | C19: S.US.CVBF | D19: =RTD("cqg.rtd", ,"ContractData",C19, "LongDescription",, "T") -> CVB Financial Corp | E19: =RTD("cqg.rtd", ,"ContractData",C19, "Open",, "T") -> 22.66 | F19: =RTD("cqg.rtd", ,"ContractData",C19, "High",, "T") -> 22.75 | G19: =RTD("cqg.rtd", ,"ContractData",C19, "Low",, "T") -> 22.29 | H19: =RTD("cqg.rtd", ,"ContractData",C19, "LastTradeToday",, "T") -> 22.65 | I19: =RTD("cqg.rtd", ,"ContractData",C19, "NetLastTradeToday",, "T") -> 0.5 | J19: =RTD("cqg.rtd", ,"ContractData",C19, "PerCentNetLastTrade",, "T")/100 -> 0.02257336343 | K19: =RTD("cqg.rtd", ,"ContractData", C19, "T_CVol",, "T") -> 341246 | L19: 19 | M19: =RANK($J19,$J$1:J$71)+COUNTIF($J$1:J19,J19)-1 -> 16 | N19: S.US.CVBF | O19: S.US.HOMB | P19: =RTD("cqg.rtd", ,"ContractData",O19, "PerCentNetLastTrade",, "T")/100 -> 0.02079934747 | Q19: https://finance.yahoo.com/quote/HOMB | S19: 0.02079934747 | V19: =RTD("cqg.rtd", ,"ContractData",O19, "LongDescription",, "T") -> Home BancShares Inc | Y19: 0.02079934747 | AA19: 1 | AB19: 1 | AD19: 0.02079934747
A20: Essent Group Ltd. | B20: ESNT | C20: S.US.ESNT | D20: =RTD("cqg.rtd", ,"ContractData",C20, "LongDescription",, "T") -> Essent Group Ltd. | E20: =RTD("cqg.rtd", ,"ContractData",C20, "Open",, "T") -> 36.81 | F20: =RTD("cqg.rtd", ,"ContractData",C20, "High",, "T") -> 37.28 | G20: =RTD("cqg.rtd", ,"ContractData",C20, "Low",, "T") -> 36.68 | H20: =RTD("cqg.rtd", ,"ContractData",C20, "LastTradeToday",, "T") -> 37.22 | I20: =RTD("cqg.rtd", ,"ContractData",C20, "NetLastTradeToday",, "T") -> 0.73 | J20: =RTD("cqg.rtd", ,"ContractData",C20, "PerCentNetLastTrade",, "T")/100 -> 0.02000548095 | K20: =RTD("cqg.rtd", ,"ContractData", C20, "T_CVol",, "T") -> 377774 | L20: 20 | M20: =RANK($J20,$J$1:J$71)+COUNTIF($J$1:J20,J20)-1 -> 21 | N20: S.US.ESNT | O20: S.US.WBS | P20: =RTD("cqg.rtd", ,"ContractData",O20, "PerCentNetLastTrade",, "T")/100 -> 0.02065874099 | Q20: https://finance.yahoo.com/quote/WBS | S20: 0.02065874099 | V20: =RTD("cqg.rtd", ,"ContractData",O20, "LongDescription",, "T") -> Webster Financial Corp | Y20: 0.02065874099 | AA20: 1 | AB20: 1 | AD20: 0.02065874099
A21: East West Bancorp | B21: EWBC | C21: S.US.EWBC | D21: =RTD("cqg.rtd", ,"ContractData",C21, "LongDescription",, "T") -> East West Bancorp | E21: =RTD("cqg.rtd", ,"ContractData",C21, "Open",, "T") -> 59.35 | F21: =RTD("cqg.rtd", ,"ContractData",C21, "High",, "T") -> 60.04 | G21: =RTD("cqg.rtd", ,"ContractData",C21, "Low",, "T") -> 57.73 | H21: =RTD("cqg.rtd", ,"ContractData",C21, "LastTradeToday",, "T") -> 58.46 | I21: =RTD("cqg.rtd", ,"ContractData",C21, "NetLastTradeToday",, "T") -> 0.21 | J21: =RTD("cqg.rtd", ,"ContractData",C21, "PerCentNetLastTrade",, "T")/100 -> 0.003605150215 | K21: =RTD("cqg.rtd", ,"ContractData", C21, "T_CVol",, "T") -> 1235559 | L21: 21 | M21: =RANK($J21,$J$1:J$71)+COUNTIF($J$1:J21,J21)-1 -> 64 | N21: S.US.EWBC | O21: S.US.ESNT | P21: =RTD("cqg.rtd", ,"ContractData",O21, "PerCentNetLastTrade",, "T")/100 -> 0.02000548095 | Q21: https://finance.yahoo.com/quote/ESNT | S21: 0.02000548095 | T21: =IF(P21>=0,NA(),-1*P21) ->  | V21: =RTD("cqg.rtd", ,"ContractData",O21, "LongDescription",, "T") -> Essent Group Ltd. | Y21: 0.02000548095 | AA21: 1 | AB21: 1 | AD21: 0.02000548095
A22: First Tennessee Nat Corp | B22: FHN | C22: S.US.FHN | D22: =RTD("cqg.rtd", ,"ContractData",C22, "LongDescription",, "T") -> First Tennessee Nat Corp | E22: =RTD("cqg.rtd", ,"ContractData",C22, "Open",, "T") -> 17.77 | F22: =RTD("cqg.rtd", ,"ContractData",C22, "High",, "T") -> 17.87 | G22: =RTD("cqg.rtd", ,"ContractData",C22, "Low",, "T") -> 17.35 | H22: =RTD("cqg.rtd", ,"ContractData",C22, "LastTradeToday",, "T") -> 17.57 | I22: =RTD("cqg.rtd", ,"ContractData",C22, "NetLastTradeToday",, "T") -> 0.33 | J22: =RTD("cqg.rtd", ,"ContractData",C22, "PerCentNetLastTrade",, "T")/100 -> 0.01914153132 | K22: =RTD("cqg.rtd", ,"ContractData", C22, "T_CVol",, "T") -> 2276870 | L22: 22 | M22: =RANK($J22,$J$1:J$71)+COUNTIF($J$1:J22,J22)-1 -> 24 | N22: S.US.FHN | O22: S.US.BKU | P22: =RTD("cqg.rtd", ,"ContractData",O22, "PerCentNetLastTrade",, "T")/100 -> 0.01983173077 | Q22: https://finance.yahoo.com/quote/BKU | S22: 0.01983173077 | V22: =RTD("cqg.rtd", ,"ContractData",O22, "LongDescription",, "T") -> BankUnited, Inc. | Y22: 0.01983173077 | AA22: 1 | AB22: 1 | AD22: 0.01983173077
A23: Fifth Third Bancorp | B23: FITB | C23: S.US.FITB | D23: =RTD("cqg.rtd", ,"ContractData",C23, "LongDescription",, "T") -> Fifth Third Bancorp | E23: =RTD("cqg.rtd", ,"ContractData",C23, "Open",, "T") -> 26.2 | F23: =RTD("cqg.rtd", ,"ContractData",C23, "High",, "T") -> 26.69 | G23: =RTD("cqg.rtd", ,"ContractData",C23, "Low",, "T") -> 25.91 | H23: =RTD("cqg.rtd", ,"ContractData",C23, "LastTradeToday",, "T") -> 26.07 | I23: =RTD("cqg.rtd", ,"ContractData",C23, "NetLastTradeToday",, "T") -> 0.58 | J23: =RTD("cqg.rtd", ,"ContractData",C23, "PerCentNetLastTrade",, "T")/100 -> 0.02275402118 | K23: =RTD("cqg.rtd", ,"ContractData", C23, "T_CVol",, "T") -> 10133295 | L23: 23 | M23: =RANK($J23,$J$1:J$71)+COUNTIF($J$1:J23,J23)-1 -> 15 | N23: S.US.FITB | O23: S.US.NYCB | P23: =RTD("cqg.rtd", ,"ContractData",O23, "PerCentNetLastTrade",, "T")/100 -> 0.01924557352 | Q23: https://finance.yahoo.com/quote/NYCB | S23: 0.01924557352 | V23: =RTD("cqg.rtd", ,"ContractData",O23, "LongDescription",, "T") -> New York Community Bankcorp Inc | Y23: 0.01924557352 | AA23: 1 | AB23: 1 | AD23: 0.01924557352 | AE23: =IFERROR(T23,"") -> 
A24: F.N.B. Corporation | B24: FNB | C24: S.US.FNB | D24: =RTD("cqg.rtd", ,"ContractData",C24, "LongDescription",, "T") -> F.N.B. Corporation | E24: =RTD("cqg.rtd", ,"ContractData",C24, "Open",, "T") -> 14.43 | F24: =RTD("cqg.rtd", ,"ContractData",C24, "High",, "T") -> 14.56 | G24: =RTD("cqg.rtd", ,"ContractData",C24, "Low",, "T") -> 14.06 | H24: =RTD("cqg.rtd", ,"ContractData",C24, "LastTradeToday",, "T") -> 14.23 | I24: =RTD("cqg.rtd", ,"ContractData",C24, "NetLastTradeToday",, "T") -> 0.23 | J24: =RTD("cqg.rtd", ,"ContractData",C24, "PerCentNetLastTrade",, "T")/100 -> 0.01642857143 | K24: =RTD("cqg.rtd", ,"ContractData", C24, "T_CVol",, "T") -> 4015081 | L24: 24 | M24: =RANK($J24,$J$1:J$71)+COUNTIF($J$1:J24,J24)-1 -> 38 | N24: S.US.FNB | O24: S.US.FHN | P24: =RTD("cqg.rtd", ,"ContractData",O24, "PerCentNetLastTrade",, "T")/100 -> 0.01914153132 | Q24: https://finance.yahoo.com/quote/FHN | S24: 0.01914153132 | V24: =RTD("cqg.rtd", ,"ContractData",O24, "LongDescription",, "T") -> First Tennessee Nat Corp | Y24: 0.01914153132 | AA24: 1 | AB24: 1 | AD24: 0.01914153132
A25: First Republic Bank | B25: FRC | C25: S.US.FRC | D25: =RTD("cqg.rtd", ,"ContractData",C25, "LongDescription",, "T") -> First Republic Bank | E25: =RTD("cqg.rtd", ,"ContractData",C25, "Open",, "T") -> 102.43 | F25: =RTD("cqg.rtd", ,"ContractData",C25, "High",, "T") -> 103.69 | G25: =RTD("cqg.rtd", ,"ContractData",C25, "Low",, "T") -> 99.29 | H25: =RTD("cqg.rtd", ,"ContractData",C25, "LastTradeToday",, "T") -> 100.56 | I25: =RTD("cqg.rtd", ,"ContractData",C25, "NetLastTradeToday",, "T") -> -0.15 | J25: =RTD("cqg.rtd", ,"ContractData",C25, "PerCentNetLastTrade",, "T")/100 -> -0.001489425082 | K25: =RTD("cqg.rtd", ,"ContractData", C25, "T_CVol",, "T") -> 968827 | L25: 25 | M25: =RANK($J25,$J$1:J$71)+COUNTIF($J$1:J25,J25)-1 -> 66 | N25: S.US.FRC | O25: S.US.KEY | P25: =RTD("cqg.rtd", ,"ContractData",O25, "PerCentNetLastTrade",, "T")/100 -> 0.01904243743 | Q25: https://finance.yahoo.com/quote/KEY | S25: 0.01904243743 | V25: =RTD("cqg.rtd", ,"ContractData",O25, "LongDescription",, "T") -> KeyCorp | Y25: 0.01904243743 | AA25: 1 | AB25: 1 | AD25: =IFERROR(S25,"") -> 0.01904243743 | AE25: =IFERROR(T25,"") -> 
A26: Fulton Financial Corporation | B26: FULT | C26: S.US.FULT | D26: =RTD("cqg.rtd", ,"ContractData",C26, "LongDescription",, "T") -> Fulton Financial Corporation | E26: =RTD("cqg.rtd", ,"ContractData",C26, "Open",, "T") -> 19.25 | F26: =RTD("cqg.rtd", ,"ContractData",C26, "High",, "T") -> 19.4 | G26: =RTD("cqg.rtd", ,"ContractData",C26, "Low",, "T") -> 18.85 | H26: =RTD("cqg.rtd", ,"ContractData",C26, "LastTradeToday",, "T") -> 19.15 | I26: =RTD("cqg.rtd", ,"ContractData",C26, "NetLastTradeToday",, "T") -> 0.15 | J26: =RTD("cqg.rtd", ,"ContractData",C26, "PerCentNetLastTrade",, "T")/100 -> 0.007894736842 | K26: =RTD("cqg.rtd", ,"ContractData", C26, "T_CVol",, "T") -> 825787 | L26: 26 | M26: =RANK($J26,$J$1:J$71)+COUNTIF($J$1:J26,J26)-1 -> 60 | N26: S.US.FULT | O26: S.US.VLY | P26: =RTD("cqg.rtd", ,"ContractData",O26, "PerCentNetLastTrade",, "T")/100 -> 0.0188034188 | Q26: https://finance.yahoo.com/quote/VLY | S26: 0.0188034188 | V26: =RTD("cqg.rtd", ,"ContractData",O26, "LongDescription",, "T") -> Valley National Bancorp | Y26: 0.0188034188 | AA26: 1 | AB26: 1
A27: Glacier Bancorp Inc | B27: GBCI | C27: S.US.GBCI | D27: =RTD("cqg.rtd", ,"ContractData",C27, "LongDescription",, "T") -> Glacier Bancorp Inc | E27: =RTD("cqg.rtd", ,"ContractData",C27, "Open",, "T") -> 36.69 | F27: =RTD("cqg.rtd", ,"ContractData",C27, "High",, "T") -> 36.94 | G27: =RTD("cqg.rtd", ,"ContractData",C27, "Low",, "T") -> 36.03 | H27: =RTD("cqg.rtd", ,"ContractData",C27, "LastTradeToday",, "T") -> 36.43 | I27: =RTD("cqg.rtd", ,"ContractData",C27, "NetLastTradeToday",, "T") -> 0.36 | J27: =RTD("cqg.rtd", ,"ContractData",C27, "PerCentNetLastTrade",, "T")/100 -> 0.009980593291 | K27: =RTD("cqg.rtd", ,"ContractData", C27, "T_CVol",, "T") -> 289911 | L27: 27 | M27: =RANK($J27,$J$1:J$71)+COUNTIF($J$1:J27,J27)-1 -> 55 | N27: S.US.GBCI | O27: S.US.WAL | P27: =RTD("cqg.rtd", ,"ContractData",O27, "PerCentNetLastTrade",, "T")/100 -> 0.0187628866 | Q27: https://finance.yahoo.com/quote/WAL | S27: 0.0187628866 | V27: =RTD("cqg.rtd", ,"ContractData",O27, "LongDescription",, "T") -> Western Alliance Bancorporation | Y27: 0.0187628866 | AA27: 1 | AB27: 1
A28: Great Western Bancorp, Inc. | B28: GWB | C28: S.US.GWB | D28: =RTD("cqg.rtd", ,"ContractData",C28, "LongDescription",, "T") -> Great Western Bancorp, Inc. | E28: =RTD("cqg.rtd", ,"ContractData",C28, "Open",, "T") -> 41.28 | F28: =RTD("cqg.rtd", ,"ContractData",C28, "High",, "T") -> 41.67 | G28: =RTD("cqg.rtd", ,"ContractData",C28, "Low",, "T") -> 40.23 | H28: =RTD("cqg.rtd", ,"ContractData",C28, "LastTradeToday",, "T") -> 40.78 | I28: =RTD("cqg.rtd", ,"ContractData",C28, "NetLastTradeToday",, "T") -> 0.7 | J28: =RTD("cqg.rtd", ,"ContractData",C28, "PerCentNetLastTrade",, "T")/100 -> 0.01746506986 | K28: =RTD("cqg.rtd", ,"ContractData", C28, "T_CVol",, "T") -> 226253 | L28: 28 | M28: =RANK($J28,$J$1:J$71)+COUNTIF($J$1:J28,J28)-1 -> 35 | N28: S.US.GWB | O28: S.US.BBT | P28: =RTD("cqg.rtd", ,"ContractData",O28, "PerCentNetLastTrade",, "T")/100 -> 0.01853506029 | Q28: https://finance.yahoo.com/quote/BBT | S28: 0.01853506029 | V28: =RTD("cqg.rtd", ,"ContractData",O28, "LongDescription",, "T") -> BB&T Corp | Y28: 0.01853506029 | AA28: 1 | AB28: 1
A29: Huntington Bancshrs Inc | B29: HBAN | C29: S.US.HBAN | D29: =RTD("cqg.rtd", ,"ContractData",C29, "LongDescription",, "T") -> Huntington Bancshrs Inc | E29: =RTD("cqg.rtd", ,"ContractData",C29, "Open",, "T") -> 13.59 | F29: =RTD("cqg.rtd", ,"ContractData",C29, "High",, "T") -> 13.78 | G29: =RTD("cqg.rtd", ,"ContractData",C29, "Low",, "T") -> 13.23 | H29: =RTD("cqg.rtd", ,"ContractData",C29, "LastTradeToday",, "T") -> 13.38 | I29: =RTD("cqg.rtd", ,"ContractData",C29, "NetLastTradeToday",, "T") -> 0.24 | J29: =RTD("cqg.rtd", ,"ContractData",C29, "PerCentNetLastTrade",, "T")/100 -> 0.01826484018 | K29: =RTD("cqg.rtd", ,"ContractData", C29, "T_CVol",, "T") -> 15035296 | L29: 29 | M29: =RANK($J29,$J$1:J$71)+COUNTIF($J$1:J29,J29)-1 -> 30 | N29: S.US.HBAN | O29: S.US.BAC | P29: =RTD("cqg.rtd", ,"ContractData",O29, "PerCentNetLastTrade",, "T")/100 -> 0.01842546064 | Q29: https://finance.yahoo.com/quote/BAC | S29: 0.01842546064 | V29: =RTD("cqg.rtd", ,"ContractData",O29, "LongDescription",, "T") -> Bank of America Corp | Y29: 0.01842546064 | AA29: 1 | AB29: 1
A30: Hancock Hldg Co | B30: HBHC | C30: S.US.HBHC | D30: =RTD("cqg.rtd", ,"ContractData",C30, "LongDescription",, "T") -> Hancock Hldg Co | E30: =RTD("cqg.rtd", ,"ContractData",C30, "Open",, "T") -> 48.85 | F30: =RTD("cqg.rtd", ,"ContractData",C30, "High",, "T") -> 49.35 | G30: =RTD("cqg.rtd", ,"ContractData",C30, "Low",, "T") -> 48.55 | H30: =RTD("cqg.rtd", ,"ContractData",C30, "LastTradeToday",, "T") -> 48.8 | I30: =RTD("cqg.rtd", ,"ContractData",C30, "NetLastTradeToday",, "T") -> 1.15 | J30: =RTD("cqg.rtd", ,"ContractData",C30, "PerCentNetLastTrade",, "T")/100 -> 0.0241343127 | K30: =RTD("cqg.rtd", ,"ContractData", C30, "T_CVol",, "T") -> 910722 | L30: 30 | M30: =RANK($J30,$J$1:J$71)+COUNTIF($J$1:J30,J30)-1 -> 11 | N30: S.US.HBHC | O30: S.US.HBAN | P30: =RTD("cqg.rtd", ,"ContractData",O30, "PerCentNetLastTrade",, "T")/100 -> 0.01826484018 | Q30: https://finance.yahoo.com/quote/HBAN | S30: 0.01826484018 | V30: =RTD("cqg.rtd", ,"ContractData",O30, "LongDescription",, "T") -> Huntington Bancshrs Inc | Y30: 0.01826484018 | AA30: 1 | AB30: 1
A31: Home BancShares Inc | B31: HOMB | C31: S.US.HOMB | D31: =RTD("cqg.rtd", ,"ContractData",C31, "LongDescription",, "T") -> Home BancShares Inc | E31: =RTD("cqg.rtd", ,"ContractData",C31, "Open",, "T") -> 24.95 | F31: =RTD("cqg.rtd", ,"ContractData",C31, "High",, "T") -> 25.19 | G31: =RTD("cqg.rtd", ,"ContractData",C31, "Low",, "T") -> 24.55 | H31: =RTD("cqg.rtd", ,"ContractData",C31, "LastTradeToday",, "T") -> 25.03 | I31: =RTD("cqg.rtd", ,"ContractData",C31, "NetLastTradeToday",, "T") -> 0.51 | J31: =RTD("cqg.rtd", ,"ContractData",C31, "PerCentNetLastTrade",, "T")/100 -> 0.02079934747 | K31: =RTD("cqg.rtd", ,"ContractData", C31, "T_CVol",, "T") -> 459133 | L31: 31 | M31: =RANK($J31,$J$1:J$71)+COUNTIF($J$1:J31,J31)-1 -> 19 | N31: S.US.HOMB | O31: S.US.CATY | P31: =RTD("cqg.rtd", ,"ContractData",O31, "PerCentNetLastTrade",, "T")/100 -> 0.01817695803 | Q31: https://finance.yahoo.com/quote/CATY | S31: 0.01817695803 | V31: =RTD("cqg.rtd", ,"ContractData",O31, "LongDescription",, "T") -> Cathay Bancorp Inc | Y31: 0.01817695803 | AA31: 1 | AB31: 1
A32: Hope Bancorp, Inc. | B32: HOPE | C32: S.US.HOPE | D32: =RTD("cqg.rtd", ,"ContractData",C32, "LongDescription",, "T") -> Hope Bancorp, Inc. | E32: =RTD("cqg.rtd", ,"ContractData",C32, "Open",, "T") -> 19.02 | F32: =RTD("cqg.rtd", ,"ContractData",C32, "High",, "T") -> 19.15 | G32: =RTD("cqg.rtd", ,"ContractData",C32, "Low",, "T") -> 18.59 | H32: =RTD("cqg.rtd", ,"ContractData",C32, "LastTradeToday",, "T") -> 18.88 | I32: =RTD("cqg.rtd", ,"ContractData",C32, "NetLastTradeToday",, "T") -> 0.23 | J32: =RTD("cqg.rtd", ,"ContractData",C32, "PerCentNetLastTrade",, "T")/100 -> 0.01233243968 | K32: =RTD("cqg.rtd", ,"ContractData", C32, "T_CVol",, "T") -> 352723 | L32: 32 | M32: =RANK($J32,$J$1:J$71)+COUNTIF($J$1:J32,J32)-1 -> 49 | N32: S.US.HOPE | O32: S.US.UMBF | P32: =RTD("cqg.rtd", ,"ContractData",O32, "PerCentNetLastTrade",, "T")/100 -> 0.01790558871 | Q32: https://finance.yahoo.com/quote/UMBF | S32: 0.01790558871 | V32: =RTD("cqg.rtd", ,"ContractData",O32, "LongDescription",, "T") -> UMB Financial Corp | Y32: 0.01790558871 | AA32: 1 | AB32: 1
A33: IBERIABANK Corp | B33: IBKC | C33: S.US.IBKC | D33: =RTD("cqg.rtd", ,"ContractData",C33, "LongDescription",, "T") -> IBERIABANK Corp | E33: =RTD("cqg.rtd", ,"ContractData",C33, "Open",, "T") -> 81.25 | F33: =RTD("cqg.rtd", ,"ContractData",C33, "High",, "T") -> 81.95 | G33: =RTD("cqg.rtd", ,"ContractData",C33, "Low",, "T") -> 80.57 | H33: =RTD("cqg.rtd", ,"ContractData",C33, "LastTradeToday",, "T") -> 81.8 | I33: =RTD("cqg.rtd", ,"ContractData",C33, "NetLastTradeToday",, "T") -> 2.2 | J33: =RTD("cqg.rtd", ,"ContractData",C33, "PerCentNetLastTrade",, "T")/100 -> 0.02763819095 | K33: =RTD("cqg.rtd", ,"ContractData", C33, "T_CVol",, "T") -> 467812 | L33: 33 | M33: =RANK($J33,$J$1:J$71)+COUNTIF($J$1:J33,J33)-1 -> 5 | N33: S.US.IBKC | O33: =VLOOKUP($L33,$M$1:$N$71,2,FALSE) -> S.US.UCBI | P33: =RTD("cqg.rtd", ,"ContractData",O33, "PerCentNetLastTrade",, "T")/100 -> 0.01783114993 | Q33: https://finance.yahoo.com/quote/UCBI | S33: 0.01783114993 | V33: =RTD("cqg.rtd", ,"ContractData",O33, "LongDescription",, "T") -> United Community Banks Inc | Y33: 0.01783114993 | AA33: 1 | AB33: 1
A34: Investors Bancorp | B34: ISBC | C34: S.US.ISBC | D34: =RTD("cqg.rtd", ,"ContractData",C34, "LongDescription",, "T") -> Investors Bancorp | E34: =RTD("cqg.rtd", ,"ContractData",C34, "Open",, "T") -> 13.48 | F34: =RTD("cqg.rtd", ,"ContractData",C34, "High",, "T") -> 13.51 | G34: =RTD("cqg.rtd", ,"ContractData",C34, "Low",, "T") -> 13.24 | H34: =RTD("cqg.rtd", ,"ContractData",C34, "LastTradeToday",, "T") -> 13.43 | I34: =RTD("cqg.rtd", ,"ContractData",C34, "NetLastTradeToday",, "T") -> 0.2 | J34: =RTD("cqg.rtd", ,"ContractData",C34, "PerCentNetLastTrade",, "T")/100 -> 0.01511715797 | K34: =RTD("cqg.rtd", ,"ContractData", C34, "T_CVol",, "T") -> 3172313 | L34: 34 | M34: =RANK($J34,$J$1:J$71)+COUNTIF($J$1:J34,J34)-1 -> 43 | N34: S.US.ISBC | O34: S.US.ONB | P34: =RTD("cqg.rtd", ,"ContractData",O34, "PerCentNetLastTrade",, "T")/100 -> 0.01759530792 | Q34: https://finance.yahoo.com/quote/ONB | S34: 0.01759530792 | V34: =RTD("cqg.rtd", ,"ContractData",O34, "LongDescription",, "T") -> Old National Bancorp | Y34: 0.01759530792 | AA34: 1 | AB34: 1
A35: JPMorgan Chase & Co. | B35: JPM | C35: S.US.JPM | D35: =RTD("cqg.rtd", ,"ContractData",C35, "LongDescription",, "T") -> JPMorgan Chase & Co. | E35: =RTD("cqg.rtd", ,"ContractData",C35, "Open",, "T") -> 92.34 | F35: =RTD("cqg.rtd", ,"ContractData",C35, "High",, "T") -> 92.65 | G35: =RTD("cqg.rtd", ,"ContractData",C35, "Low",, "T") -> 90.31 | H35: =RTD("cqg.rtd", ,"ContractData",C35, "LastTradeToday",, "T") -> 91.15 | I35: =RTD("cqg.rtd", ,"ContractData",C35, "NetLastTradeToday",, "T") -> 1.33 | J35: =RTD("cqg.rtd", ,"ContractData",C35, "PerCentNetLastTrade",, "T")/100 -> 0.01480739256 | K35: =RTD("cqg.rtd", ,"ContractData", C35, "T_CVol",, "T") -> 27685623 | L35: 35 | M35: =RANK($J35,$J$1:J$71)+COUNTIF($J$1:J35,J35)-1 -> 46 | N35: S.US.JPM | O35: S.US.GWB | P35: =RTD("cqg.rtd", ,"ContractData",O35, "PerCentNetLastTrade",, "T")/100 -> 0.01746506986 | Q35: https://finance.yahoo.com/quote/GWB | S35: 0.01746506986 | V35: =RTD("cqg.rtd", ,"ContractData",O35, "LongDescription",, "T") -> Great Western Bancorp, Inc. | Y35: 0.01746506986 | AA35: 1 | AB35: 1
A36: KeyCorp | B36: KEY | C36: S.US.KEY | D36: =RTD("cqg.rtd", ,"ContractData",C36, "LongDescription",, "T") -> KeyCorp | E36: =RTD("cqg.rtd", ,"ContractData",C36, "Open",, "T") -> 18.82 | F36: =RTD("cqg.rtd", ,"ContractData",C36, "High",, "T") -> 19.1 | G36: =RTD("cqg.rtd", ,"ContractData",C36, "Low",, "T") -> 18.52 | H36: =RTD("cqg.rtd", ,"ContractData",C36, "LastTradeToday",, "T") -> 18.73 | I36: =RTD("cqg.rtd", ,"ContractData",C36, "NetLastTradeToday",, "T") -> 0.35 | J36: =RTD("cqg.rtd", ,"ContractData",C36, "PerCentNetLastTrade",, "T")/100 -> 0.01904243743 | K36: =RTD("cqg.rtd", ,"ContractData", C36, "T_CVol",, "T") -> 12973899 | L36: 36 | M36: =RANK($J36,$J$1:J$71)+COUNTIF($J$1:J36,J36)-1 -> 25 | N36: S.US.KEY | O36: S.US.TRMK | P36: =RTD("cqg.rtd", ,"ContractData",O36, "PerCentNetLastTrade",, "T")/100 -> 0.01722518008 | Q36: https://finance.yahoo.com/quote/TRMK | S36: 0.01722518008 | V36: =RTD("cqg.rtd", ,"ContractData",O36, "LongDescription",, "T") -> Trustmark Corporation | Y36: 0.01722518008 | AA36: 1 | AB36: 1
A37: MB Financial Inc | B37: MBFI | C37: S.US.MBFI | D37: =RTD("cqg.rtd", ,"ContractData",C37, "LongDescription",, "T") -> MB Financial Inc | E37: =RTD("cqg.rtd", ,"ContractData",C37, "Open",, "T") -> 44.64 | F37: =RTD("cqg.rtd", ,"ContractData",C37, "High",, "T") -> 44.85 | G37: =RTD("cqg.rtd", ,"ContractData",C37, "Low",, "T") -> 43.66 | H37: =RTD("cqg.rtd", ,"ContractData",C37, "LastTradeToday",, "T") -> 44.27 | I37: =RTD("cqg.rtd", ,"ContractData",C37, "NetLastTradeToday",, "T") -> 0.52 | J37: =RTD("cqg.rtd", ,"ContractData",C37, "PerCentNetLastTrade",, "T")/100 -> 0.01188571429 | K37: =RTD("cqg.rtd", ,"ContractData", C37, "T_CVol",, "T") -> 302374 | L37: 37 | M37: =RANK($J37,$J$1:J$71)+COUNTIF($J$1:J37,J37)-1 -> 50 | N37: S.US.MBFI | O37: S.US.SBNY | P37: =RTD("cqg.rtd", ,"ContractData",O37, "PerCentNetLastTrade",, "T")/100 -> 0.0167972334 | Q37: https://finance.yahoo.com/quote/SBNY | S37: 0.0167972334 | V37: =RTD("cqg.rtd", ,"ContractData",O37, "LongDescription",, "T") -> Signature Bank | Y37: 0.0167972334 | AA37: 1 | AB37: 1
A38: M&T Bank Corp | B38: MTB | C38: S.US.MTB | D38: =RTD("cqg.rtd", ,"ContractData",C38, "LongDescription",, "T") -> M&T Bank Corp | E38: =RTD("cqg.rtd", ,"ContractData",C38, "Open",, "T") -> 163.11 | F38: =RTD("cqg.rtd", ,"ContractData",C38, "High",, "T") -> 163.9 | G38: =RTD("cqg.rtd", ,"ContractData",C38, "Low",, "T") -> 159.29 | H38: =RTD("cqg.rtd", ,"ContractData",C38, "LastTradeToday",, "T") -> 161.18 | I38: =RTD("cqg.rtd", ,"ContractData",C38, "NetLastTradeToday",, "T") -> -0.47 | J38: =RTD("cqg.rtd", ,"ContractData",C38, "PerCentNetLastTrade",, "T")/100 -> -0.002907516239 | K38: =RTD("cqg.rtd", ,"ContractData", C38, "T_CVol",, "T") -> 1347653 | L38: 38 | M38: =RANK($J38,$J$1:J$71)+COUNTIF($J$1:J38,J38)-1 -> 69 | N38: S.US.MTB | O38: S.US.FNB | P38: =RTD("cqg.rtd", ,"ContractData",O38, "PerCentNetLastTrade",, "T")/100 -> 0.01642857143 | Q38: https://finance.yahoo.com/quote/FNB | S38: 0.01642857143 | V38: =RTD("cqg.rtd", ,"ContractData",O38, "LongDescription",, "T") -> F.N.B. Corporation | Y38: 0.01642857143 | AA38: 1 | AB38: 1
A39: MGIC Investment Corp | B39: MTG | C39: S.US.MTG | D39: =RTD("cqg.rtd", ,"ContractData",C39, "LongDescription",, "T") -> MGIC Investment Corp | E39: =RTD("cqg.rtd", ,"ContractData",C39, "Open",, "T") -> 11.27 | F39: =RTD("cqg.rtd", ,"ContractData",C39, "High",, "T") -> 11.37 | G39: =RTD("cqg.rtd", ,"ContractData",C39, "Low",, "T") -> 11.12 | H39: =RTD("cqg.rtd", ,"ContractData",C39, "LastTradeToday",, "T") -> 11.23 | I39: =RTD("cqg.rtd", ,"ContractData",C39, "NetLastTradeToday",, "T") -> 0.05 | J39: =RTD("cqg.rtd", ,"ContractData",C39, "PerCentNetLastTrade",, "T")/100 -> 0.004472271914 | K39: =RTD("cqg.rtd", ,"ContractData", C39, "T_CVol",, "T") -> 3367192 | L39: 39 | M39: =RANK($J39,$J$1:J$71)+COUNTIF($J$1:J39,J39)-1 -> 63 | N39: S.US.MTG | O39: S.US.UBSI | P39: =RTD("cqg.rtd", ,"ContractData",O39, "PerCentNetLastTrade",, "T")/100 -> 0.01637279597 | Q39: https://finance.yahoo.com/quote/UBSI | S39: 0.01637279597 | V39: =RTD("cqg.rtd", ,"ContractData",O39, "LongDescription",, "T") -> United Bankshares | Y39: 0.01637279597 | AA39: =IF(S39="#N/A",0,1) -> 1 | AB39: 1
A40: Northern Trust Corp | B40: NTRS | C40: S.US.NTRS | D40: =RTD("cqg.rtd", ,"ContractData",C40, "LongDescription",, "T") -> Northern Trust Corp | E40: =RTD("cqg.rtd", ,"ContractData",C40, "Open",, "T") -> 98.03 | F40: =RTD("cqg.rtd", ,"ContractData",C40, "High",, "T") -> 98.72 | G40: =RTD("cqg.rtd", ,"ContractData",C40, "Low",, "T") -> 95.85 | H40: =RTD("cqg.rtd", ,"ContractData",C40, "LastTradeToday",, "T") -> 97 | I40: =RTD("cqg.rtd", ,"ContractData",C40, "NetLastTradeToday",, "T") -> 0.34 | J40: =RTD("cqg.rtd", ,"ContractData",C40, "PerCentNetLastTrade",, "T")/100 -> 0.003517483964 | K40: =RTD("cqg.rtd", ,"ContractData", C40, "T_CVol",, "T") -> 1439981 | L40: 40 | M40: =RANK($J40,$J$1:J$71)+COUNTIF($J$1:J40,J40)-1 -> 65 | N40: S.US.NTRS | O40: S.US.ASB | P40: =RTD("cqg.rtd", ,"ContractData",O40, "PerCentNetLastTrade",, "T")/100 -> 0.01612903226 | Q40: https://finance.yahoo.com/quote/ASB | S40: 0.01612903226 | V40: =RTD("cqg.rtd", ,"ContractData",O40, "LongDescription",, "T") -> Associated Banc-Corp | Y40: 0.01612903226 | AA40: 1 | AB40: 1
A41: New York Community Bankcorp Inc | B41: NYCB | C41: S.US.NYCB | D41: =RTD("cqg.rtd", ,"ContractData",C41, "LongDescription",, "T") -> New York Community Bankcorp Inc | E41: =RTD("cqg.rtd", ,"ContractData",C41, "Open",, "T") -> 13.22 | F41: =RTD("cqg.rtd", ,"ContractData",C41, "High",, "T") -> 13.34 | G41: =RTD("cqg.rtd", ,"ContractData",C41, "Low",, "T") -> 13.11 | H41: =RTD("cqg.rtd", ,"ContractData",C41, "LastTradeToday",, "T") -> 13.24 | I41: =RTD("cqg.rtd", ,"ContractData",C41, "NetLastTradeToday",, "T") -> 0.25 | J41: =RTD("cqg.rtd", ,"ContractData",C41, "PerCentNetLastTrade",, "T")/100 -> 0.01924557352 | K41: =RTD("cqg.rtd", ,"ContractData", C41, "T_CVol",, "T") -> 5190394 | L41: 41 | M41: =RANK($J41,$J$1:J$71)+COUNTIF($J$1:J41,J41)-1 -> 23 | N41: S.US.NYCB | O41: S.US.CBU | P41: =RTD("cqg.rtd", ,"ContractData",O41, "PerCentNetLastTrade",, "T")/100 -> 0.01599568656 | Q41: https://finance.yahoo.com/quote/CBU | S41: 0.01599568656 | V41: =RTD("cqg.rtd", ,"ContractData",O41, "LongDescription",, "T") -> Community Bank System, Inc. | Y41: 0.01599568656 | AA41: 1 | AB41: 1
A42: Old National Bancorp | B42: ONB | C42: S.US.ONB | D42: =RTD("cqg.rtd", ,"ContractData",C42, "LongDescription",, "T") -> Old National Bancorp | E42: =RTD("cqg.rtd", ,"ContractData",C42, "Open",, "T") -> 17.35 | F42: =RTD("cqg.rtd", ,"ContractData",C42, "High",, "T") -> 17.6 | G42: =RTD("cqg.rtd", ,"ContractData",C42, "Low",, "T") -> 17.15 | H42: =RTD("cqg.rtd", ,"ContractData",C42, "LastTradeToday",, "T") -> 17.35 | I42: =RTD("cqg.rtd", ,"ContractData",C42, "NetLastTradeToday",, "T") -> 0.3 | J42: =RTD("cqg.rtd", ,"ContractData",C42, "PerCentNetLastTrade",, "T")/100 -> 0.01759530792 | K42: =RTD("cqg.rtd", ,"ContractData", C42, "T_CVol",, "T") -> 1386674 | L42: 42 | M42: =RANK($J42,$J$1:J$71)+COUNTIF($J$1:J42,J42)-1 -> 34 | N42: S.US.ONB | O42: S.US.PNFP | P42: =RTD("cqg.rtd", ,"ContractData",O42, "PerCentNetLastTrade",, "T")/100 -> 0.01532258065 | Q42: https://finance.yahoo.com/quote/PNFP | S42: 0.01532258065 | V42: =RTD("cqg.rtd", ,"ContractData",O42, "LongDescription",, "T") -> Pinnacle Financial Partners Inc | Y42: 0.01532258065 | AA42: 1 | AB42: 1
A43: Bank of the Ozarks | B43: OZRK | C43: S.US.OZRK | D43: =RTD("cqg.rtd", ,"ContractData",C43, "LongDescription",, "T") -> Bank of the Ozarks | E43: =RTD("cqg.rtd", ,"ContractData",C43, "Open",, "T") -> 46.84 | F43: =RTD("cqg.rtd", ,"ContractData",C43, "High",, "T") -> 47.65 | G43: =RTD("cqg.rtd", ,"ContractData",C43, "Low",, "T") -> 46.42 | H43: =RTD("cqg.rtd", ,"ContractData",C43, "LastTradeToday",, "T") -> 47.11 | I43: =RTD("cqg.rtd", ,"ContractData",C43, "NetLastTradeToday",, "T") -> 1.25 | J43: =RTD("cqg.rtd", ,"ContractData",C43, "PerCentNetLastTrade",, "T")/100 -> 0.02725686873 | K43: =RTD("cqg.rtd", ,"ContractData", C43, "T_CVol",, "T") -> 2105406 | L43: 43 | M43: =RANK($J43,$J$1:J$71)+COUNTIF($J$1:J43,J43)-1 -> 7 | N43: S.US.OZRK | O43: S.US.ISBC | P43: =RTD("cqg.rtd", ,"ContractData",O43, "PerCentNetLastTrade",, "T")/100 -> 0.01511715797 | Q43: https://finance.yahoo.com/quote/ISBC | S43: 0.01511715797 | V43: =RTD("cqg.rtd", ,"ContractData",O43, "LongDescription",, "T") -> Investors Bancorp | Y43: 0.01511715797 | AA43: 1 | AB43: 1
A44: PacWest Bancorp | B44: PACW | C44: S.US.PACW | D44: =RTD("cqg.rtd", ,"ContractData",C44, "LongDescription",, "T") -> PacWest Bancorp | E44: =RTD("cqg.rtd", ,"ContractData",C44, "Open",, "T") -> 47.33 | F44: =RTD("cqg.rtd", ,"ContractData",C44, "High",, "T") -> 47.87 | G44: =RTD("cqg.rtd", ,"ContractData",C44, "Low",, "T") -> 46.2 | H44: =RTD("cqg.rtd", ,"ContractData",C44, "LastTradeToday",, "T") -> 46.97 | I44: =RTD("cqg.rtd", ,"ContractData",C44, "NetLastTradeToday",, "T") -> 0.6 | J44: =RTD("cqg.rtd", ,"ContractData",C44, "PerCentNetLastTrade",, "T")/100 -> 0.01293940047 | K44: =RTD("cqg.rtd", ,"ContractData", C44, "T_CVol",, "T") -> 1045429 | L44: 44 | M44: =RANK($J44,$J$1:J$71)+COUNTIF($J$1:J44,J44)-1 -> 48 | N44: S.US.PACW | O44: S.US.PNC | P44: =RTD("cqg.rtd", ,"ContractData",O44, "PerCentNetLastTrade",, "T")/100 -> 0.01499189627 | Q44: https://finance.yahoo.com/quote/PNC | S44: 0.01499189627 | V44: =RTD("cqg.rtd", ,"ContractData",O44, "LongDescription",, "T") -> PNC Fincl Svcs Grp Inc | Y44: 0.01499189627 | AA44: 1 | AB44: 1
A45: Prosperity Bancshares Inc. | B45: PB | C45: S.US.PB | D45: =RTD("cqg.rtd", ,"ContractData",C45, "LongDescription",, "T") -> Prosperity Bancshares Inc. | E45: =RTD("cqg.rtd", ,"ContractData",C45, "Open",, "T") -> 65.33 | F45: =RTD("cqg.rtd", ,"ContractData",C45, "High",, "T") -> 65.39 | G45: =RTD("cqg.rtd", ,"ContractData",C45, "Low",, "T") -> 64.02 | H45: =RTD("cqg.rtd", ,"ContractData",C45, "LastTradeToday",, "T") -> 64.67 | I45: =RTD("cqg.rtd", ,"ContractData",C45, "NetLastTradeToday",, "T") -> 1.35 | J45: =RTD("cqg.rtd", ,"ContractData",C45, "PerCentNetLastTrade",, "T")/100 -> 0.02132027795 | K45: =RTD("cqg.rtd", ,"ContractData", C45, "T_CVol",, "T") -> 847561 | L45: 45 | M45: =RANK($J45,$J$1:J$71)+COUNTIF($J$1:J45,J45)-1 -> 18 | N45: S.US.PB | O45: S.US.BXS | P45: =RTD("cqg.rtd", ,"ContractData",O45, "PerCentNetLastTrade",, "T")/100 -> 0.01485148515 | Q45: https://finance.yahoo.com/quote/BXS | S45: 0.01485148515 | V45: =RTD("cqg.rtd", ,"ContractData",O45, "LongDescription",, "T") -> BANCORPSOUTH INC | Y45: 0.01485148515 | AA45: 1 | AB45: 1 | AD45: =IFERROR(S45,"") -> 0.01485148515 | AE45: =IFERROR(T45,"") ->  | AF45: =IF(AE45="","",Y45) -> 
A46: Peoples United Financial | B46: PBCT | C46: S.US.PBCT | D46: =RTD("cqg.rtd", ,"ContractData",C46, "LongDescription",, "T") -> Peoples United Financial | E46: =RTD("cqg.rtd", ,"ContractData",C46, "Open",, "T") -> 17.76 | F46: =RTD("cqg.rtd", ,"ContractData",C46, "High",, "T") -> 17.96 | G46: =RTD("cqg.rtd", ,"ContractData",C46, "Low",, "T") -> 17.48 | H46: =RTD("cqg.rtd", ,"ContractData",C46, "LastTradeToday",, "T") -> 17.71 | I46: =RTD("cqg.rtd", ,"ContractData",C46, "NetLastTradeToday",, "T") -> 0.19 | J46: =RTD("cqg.rtd", ,"ContractData",C46, "PerCentNetLastTrade",, "T")/100 -> 0.01084474886 | K46: =RTD("cqg.rtd", ,"ContractData", C46, "T_CVol",, "T") -> 3274537 | L46: 46 | M46: =RANK($J46,$J$1:J$71)+COUNTIF($J$1:J46,J46)-1 -> 52 | N46: S.US.PBCT | O46: S.US.JPM | P46: =RTD("cqg.rtd", ,"ContractData",O46, "PerCentNetLastTrade",, "T")/100 -> 0.01480739256 | Q46: https://finance.yahoo.com/quote/JPM | S46: 0.01480739256 | V46: =RTD("cqg.rtd", ,"ContractData",O46, "LongDescription",, "T") -> JPMorgan Chase & Co. | Y46: 0.01480739256 | AA46: 1 | AB46: 1 | AD46: =IFERROR(S46,"") -> 0.01480739256 | AE46: =IFERROR(T46,"") ->  | AF46: =IF(AE46="","",Y46) -> 
A47: PNC Fincl Svcs Grp Inc | B47: PNC | C47: S.US.PNC | D47: =RTD("cqg.rtd", ,"ContractData",C47, "LongDescription",, "T") -> PNC Fincl Svcs Grp Inc | E47: =RTD("cqg.rtd", ,"ContractData",C47, "Open",, "T") -> 126.63 | F47: =RTD("cqg.rtd", ,"ContractData",C47, "High",, "T") -> 128.25 | G47: =RTD("cqg.rtd", ,"ContractData",C47, "Low",, "T") -> 124.19 | H47: =RTD("cqg.rtd", ,"ContractData",C47, "LastTradeToday",, "T") -> 125.25 | I47: =RTD("cqg.rtd", ,"ContractData",C47, "NetLastTradeToday",, "T") -> 1.85 | J47: =RTD("cqg.rtd", ,"ContractData",C47, "PerCentNetLastTrade",, "T")/100 -> 0.01499189627 | K47: =RTD("cqg.rtd", ,"ContractData", C47, "T_CVol",, "T") -> 2669345 | L47: 47 | M47: =RANK($J47,$J$1:J$71)+COUNTIF($J$1:J47,J47)-1 -> 44 | N47: S.US.PNC | O47: S.US.STI | P47: =RTD("cqg.rtd", ,"ContractData",O47, "PerCentNetLastTrade",, "T")/100 -> 0.01301479765 | Q47: https://finance.yahoo.com/quote/STI | S47: 0.01301479765 | V47: =RTD("cqg.rtd", ,"ContractData",O47, "LongDescription",, "T") -> SunTrust Banks Inc | Y47: 0.01301479765 | AA47: 1 | AB47: 1 | AD47: 0.01301479765
A48: Pinnacle Financial Partners Inc | B48: PNFP | C48: S.US.PNFP | D48: =RTD("cqg.rtd", ,"ContractData",C48, "LongDescription",, "T") -> Pinnacle Financial Partners Inc | E48: =RTD("cqg.rtd", ,"ContractData",C48, "Open",, "T") -> 63.5 | F48: =RTD("cqg.rtd", ,"ContractData",C48, "High",, "T") -> 64.3 | G48: =RTD("cqg.rtd", ,"ContractData",C48, "Low",, "T") -> 62 | H48: =RTD("cqg.rtd", ,"ContractData",C48, "LastTradeToday",, "T") -> 62.95 | I48: =RTD("cqg.rtd", ,"ContractData",C48, "NetLastTradeToday",, "T") -> 0.95 | J48: =RTD("cqg.rtd", ,"ContractData",C48, "PerCentNetLastTrade",, "T")/100 -> 0.01532258065 | K48: =RTD("cqg.rtd", ,"ContractData", C48, "T_CVol",, "T") -> 613217 | L48: 48 | M48: =RANK($J48,$J$1:J$71)+COUNTIF($J$1:J48,J48)-1 -> 42 | N48: S.US.PNFP | O48: S.US.PACW | P48: =RTD("cqg.rtd", ,"ContractData",O48, "PerCentNetLastTrade",, "T")/100 -> 0.01293940047 | Q48: https://finance.yahoo.com/quote/PACW | S48: 0.01293940047 | V48: =RTD("cqg.rtd", ,"ContractData",O48, "LongDescription",, "T") -> PacWest Bancorp | Y48: 0.01293940047 | AA48: 1 | AB48: 1 | AD48: 0.01293940047
A49: Radian Group | B49: RDN | C49: S.US.RDN | D49: =RTD("cqg.rtd", ,"ContractData",C49, "LongDescription",, "T") -> Radian Group | E49: =RTD("cqg.rtd", ,"ContractData",C49, "Open",, "T") -> 16.72 | F49: =RTD("cqg.rtd", ,"ContractData",C49, "High",, "T") -> 16.73 | G49: =RTD("cqg.rtd", ,"ContractData",C49, "Low",, "T") -> 16.24 | H49: =RTD("cqg.rtd", ,"ContractData",C49, "LastTradeToday",, "T") -> 16.31 | I49: =RTD("cqg.rtd", ,"ContractData",C49, "NetLastTradeToday",, "T") -> -0.14 | J49: =RTD("cqg.rtd", ,"ContractData",C49, "PerCentNetLastTrade",, "T")/100 -> -0.008510638298 | K49: =RTD("cqg.rtd", ,"ContractData", C49, "T_CVol",, "T") -> 3259481 | L49: 49 | M49: =RANK($J49,$J$1:J$71)+COUNTIF($J$1:J49,J49)-1 -> 71 | N49: S.US.RDN | O49: S.US.HOPE | P49: =RTD("cqg.rtd", ,"ContractData",O49, "PerCentNetLastTrade",, "T")/100 -> 0.01233243968 | Q49: https://finance.yahoo.com/quote/HOPE | S49: 0.01233243968 | V49: =RTD("cqg.rtd", ,"ContractData",O49, "LongDescription",, "T") -> Hope Bancorp, Inc. | Y49: 0.01233243968 | AA49: 1 | AB49: 1 | AD49: 0.01233243968
A50: Regions Financial Corp | B50: RF | C50: S.US.RF | D50: =RTD("cqg.rtd", ,"ContractData",C50, "LongDescription",, "T") -> Regions Financial Corp | E50: =RTD("cqg.rtd", ,"ContractData",C50, "Open",, "T") -> 14.63 | F50: =RTD("cqg.rtd", ,"ContractData",C50, "High",, "T") -> 14.85 | G50: =RTD("cqg.rtd", ,"ContractData",C50, "Low",, "T") -> 14.48 | H50: =RTD("cqg.rtd", ,"ContractData",C50, "LastTradeToday",, "T") -> 14.66 | I50: =RTD("cqg.rtd", ,"ContractData",C50, "NetLastTradeToday",, "T") -> 0.57 | J50: =RTD("cqg.rtd", ,"ContractData",C50, "PerCentNetLastTrade",, "T")/100 -> 0.04045422285 | K50: =RTD("cqg.rtd", ,"ContractData", C50, "T_CVol",, "T") -> 32445983 | L50: 50 | M50: =RANK($J50,$J$1:J$71)+COUNTIF($J$1:J50,J50)-1 -> 1 | N50: S.US.RF | O50: S.US.MBFI | P50: =RTD("cqg.rtd", ,"ContractData",O50, "PerCentNetLastTrade",, "T")/100 -> 0.01188571429 | Q50: https://finance.yahoo.com/quote/MBFI | S50: 0.01188571429 | V50: =RTD("cqg.rtd", ,"ContractData",O50, "LongDescription",, "T") -> MB Financial Inc | Y50: 0.01188571429 | AA50: 1 | AB50: 1 | AD50: 0.01188571429
A51: Signature Bank | B51: SBNY | C51: S.US.SBNY | D51: =RTD("cqg.rtd", ,"ContractData",C51, "LongDescription",, "T") -> Signature Bank | E51: =RTD("cqg.rtd", ,"ContractData",C51, "Open",, "T") -> 144.7 | F51: =RTD("cqg.rtd", ,"ContractData",C51, "High",, "T") -> 146.32 | G51: =RTD("cqg.rtd", ,"ContractData",C51, "Low",, "T") -> 142.55 | H51: =RTD("cqg.rtd", ,"ContractData",C51, "LastTradeToday",, "T") -> 144.07 | I51: =RTD("cqg.rtd", ,"ContractData",C51, "NetLastTradeToday",, "T") -> 2.38 | J51: =RTD("cqg.rtd", ,"ContractData",C51, "PerCentNetLastTrade",, "T")/100 -> 0.0167972334 | K51: =RTD("cqg.rtd", ,"ContractData", C51, "T_CVol",, "T") -> 607782 | L51: 51 | M51: =RANK($J51,$J$1:J$71)+COUNTIF($J$1:J51,J51)-1 -> 37 | N51: S.US.SBNY | O51: S.US.CMA | P51: =RTD("cqg.rtd", ,"ContractData",O51, "PerCentNetLastTrade",, "T")/100 -> 0.01181540172 | Q51: https://finance.yahoo.com/quote/CMA | S51: 0.01181540172 | V51: =RTD("cqg.rtd", ,"ContractData",O51, "LongDescription",, "T") -> Comerica Inc | Y51: 0.01181540172 | AA51: 1 | AB51: 1 | AD51: 0.01181540172
A52: SVB Financial Group | B52: SIVB | C52: S.US.SIVB | D52: =RTD("cqg.rtd", ,"ContractData",C52, "LongDescription",, "T") -> SVB Financial Group | E52: =RTD("cqg.rtd", ,"ContractData",C52, "Open",, "T") -> 179.58 | F52: =RTD("cqg.rtd", ,"ContractData",C52, "High",, "T") -> 181.49 | G52: =RTD("cqg.rtd", ,"ContractData",C52, "Low",, "T") -> 175.89 | H52: =RTD("cqg.rtd", ,"ContractData",C52, "LastTradeToday",, "T") -> 177.23 | I52: =RTD("cqg.rtd", ,"ContractData",C52, "NetLastTradeToday",, "T") -> 1.14 | J52: =RTD("cqg.rtd", ,"ContractData",C52, "PerCentNetLastTrade",, "T")/100 -> 0.006473962178 | K52: =RTD("cqg.rtd", ,"ContractData", C52, "T_CVol",, "T") -> 475142 | L52: 52 | M52: =RANK($J52,$J$1:J$71)+COUNTIF($J$1:J52,J52)-1 -> 62 | N52: S.US.SIVB | O52: S.US.PBCT | P52: =RTD("cqg.rtd", ,"ContractData",O52, "PerCentNetLastTrade",, "T")/100 -> 0.01084474886 | Q52: https://finance.yahoo.com/quote/PBCT | S52: 0.01084474886 | V52: =RTD("cqg.rtd", ,"ContractData",O52, "LongDescription",, "T") -> Peoples United Financial | Y52: 0.01084474886 | AA52: 1 | AB52: 1 | AD52: 0.01084474886
A53: Synovous Fin Corp | B53: SNV | C53: S.US.SNV | D53: =RTD("cqg.rtd", ,"ContractData",C53, "LongDescription",, "T") -> Synovous Fin Corp | E53: =RTD("cqg.rtd", ,"ContractData",C53, "Open",, "T") -> 44.59 | F53: =RTD("cqg.rtd", ,"ContractData",C53, "High",, "T") -> 44.76 | G53: =RTD("cqg.rtd", ,"ContractData",C53, "Low",, "T") -> 43.68 | H53: =RTD("cqg.rtd", ,"ContractData",C53, "LastTradeToday",, "T") -> 44.41 | I53: =RTD("cqg.rtd", ,"ContractData",C53, "NetLastTradeToday",, "T") -> 1.05 | J53: =RTD("cqg.rtd", ,"ContractData",C53, "PerCentNetLastTrade",, "T")/100 -> 0.02421586716 | K53: =RTD("cqg.rtd", ,"ContractData", C53, "T_CVol",, "T") -> 922345 | L53: 53 | M53: =RANK($J53,$J$1:J$71)+COUNTIF($J$1:J53,J53)-1 -> 10 | N53: S.US.SNV | O53: S.US.CBSH | P53: =RTD("cqg.rtd", ,"ContractData",O53, "PerCentNetLastTrade",, "T")/100 -> 0.0105764146 | Q53: https://finance.yahoo.com/quote/CBSH | S53: 0.0105764146 | V53: =RTD("cqg.rtd", ,"ContractData",O53, "LongDescription",, "T") -> Commerce Bancshares Inc | Y53: 0.0105764146 | AA53: 1 | AB53: 1 | AD53: 0.0105764146
A54: SunTrust Banks Inc | B54: STI | C54: S.US.STI | D54: =RTD("cqg.rtd", ,"ContractData",C54, "LongDescription",, "T") -> SunTrust Banks Inc | E54: =RTD("cqg.rtd", ,"ContractData",C54, "Open",, "T") -> 58.07 | F54: =RTD("cqg.rtd", ,"ContractData",C54, "High",, "T") -> 58.25 | G54: =RTD("cqg.rtd", ,"ContractData",C54, "Low",, "T") -> 56.14 | H54: =RTD("cqg.rtd", ,"ContractData",C54, "LastTradeToday",, "T") -> 56.82 | I54: =RTD("cqg.rtd", ,"ContractData",C54, "NetLastTradeToday",, "T") -> 0.73 | J54: =RTD("cqg.rtd", ,"ContractData",C54, "PerCentNetLastTrade",, "T")/100 -> 0.01301479765 | K54: =RTD("cqg.rtd", ,"ContractData", C54, "T_CVol",, "T") -> 5388154 | L54: 54 | M54: =RANK($J54,$J$1:J$71)+COUNTIF($J$1:J54,J54)-1 -> 47 | N54: S.US.STI | O54: S.US.VOYA | P54: =RTD("cqg.rtd", ,"ContractData",O54, "PerCentNetLastTrade",, "T")/100 -> 0.01028138528 | Q54: https://finance.yahoo.com/quote/VOYA | S54: 0.01028138528 | V54: =RTD("cqg.rtd", ,"ContractData",O54, "LongDescription",, "T") -> VOYA Financial, Inc. | Y54: 0.01028138528 | AA54: 1 | AB54: 1 | AD54: 0.01028138528
A55: Sterling Bancorp | B55: STL | C55: S.US.STL | D55: =RTD("cqg.rtd", ,"ContractData",C55, "LongDescription",, "T") -> Sterling Bancorp | E55: =RTD("cqg.rtd", ,"ContractData",C55, "Open",, "T") -> 23.7 | F55: =RTD("cqg.rtd", ,"ContractData",C55, "High",, "T") -> 23.7 | G55: =RTD("cqg.rtd", ,"ContractData",C55, "Low",, "T") -> 23.1 | H55: =RTD("cqg.rtd", ,"ContractData",C55, "LastTradeToday",, "T") -> 23.55 | I55: =RTD("cqg.rtd", ,"ContractData",C55, "NetLastTradeToday",, "T") -> 0.5 | J55: =RTD("cqg.rtd", ,"ContractData",C55, "PerCentNetLastTrade",, "T")/100 -> 0.02169197397 | K55: =RTD("cqg.rtd", ,"ContractData", C55, "T_CVol",, "T") -> 1233942 | L55: 55 | M55: =RANK($J55,$J$1:J$71)+COUNTIF($J$1:J55,J55)-1 -> 17 | N55: S.US.STL | O55: S.US.GBCI | P55: =RTD("cqg.rtd", ,"ContractData",O55, "PerCentNetLastTrade",, "T")/100 -> 0.009980593291 | Q55: https://finance.yahoo.com/quote/GBCI | S55: 0.009980593291 | V55: =RTD("cqg.rtd", ,"ContractData",O55, "LongDescription",, "T") -> Glacier Bancorp Inc | Y55: 0.009980593291 | AA55: 1 | AB55: 1 | AD55: 0.009980593291
A56: Texas Capital Bancshares Inc | B56: TCBI | C56: S.US.TCBI | D56: =RTD("cqg.rtd", ,"ContractData",C56, "LongDescription",, "T") -> Texas Capital Bancshares Inc | E56: =RTD("cqg.rtd", ,"ContractData",C56, "Open",, "T") -> 77.05 | F56: =RTD("cqg.rtd", ,"ContractData",C56, "High",, "T") -> 77.8 | G56: =RTD("cqg.rtd", ,"ContractData",C56, "Low",, "T") -> 76.05 | H56: =RTD("cqg.rtd", ,"ContractData",C56, "LastTradeToday",, "T") -> 77.4 | I56: =RTD("cqg.rtd", ,"ContractData",C56, "NetLastTradeToday",, "T") -> 2.1 | J56: =RTD("cqg.rtd", ,"ContractData",C56, "PerCentNetLastTrade",, "T")/100 -> 0.02788844622 | K56: =RTD("cqg.rtd", ,"ContractData", C56, "T_CVol",, "T") -> 753998 | L56: 56 | M56: =RANK($J56,$J$1:J$71)+COUNTIF($J$1:J56,J56)-1 -> 4 | N56: S.US.TCBI | O56: S.US.UMPQ | P56: =RTD("cqg.rtd", ,"ContractData",O56, "PerCentNetLastTrade",, "T")/100 -> 0.009787928222 | Q56: https://finance.yahoo.com/quote/UMPQ | S56: 0.009787928222 | V56: =RTD("cqg.rtd", ,"ContractData",O56, "LongDescription",, "T") -> Umpqua Hldgs Corp | Y56: 0.009787928222 | AA56: 1 | AB56: 1 | AD56: 0.009787928222
A57: TCF Financial Corp | B57: TCB | C57: S.US.TCB | D57: =RTD("cqg.rtd", ,"ContractData",C57, "LongDescription",, "T") -> TCF Financial Corp | E57: =RTD("cqg.rtd", ,"ContractData",C57, "Open",, "T") -> 16.07 | F57: =RTD("cqg.rtd", ,"ContractData",C57, "High",, "T") -> 16.14 | G57: =RTD("cqg.rtd", ,"ContractData",C57, "Low",, "T") -> 15.76 | H57: =RTD("cqg.rtd", ,"ContractData",C57, "LastTradeToday",, "T") -> 15.99 | I57: =RTD("cqg.rtd", ,"ContractData",C57, "NetLastTradeToday",, "T") -> 0.39 | J57: =RTD("cqg.rtd", ,"ContractData",C57, "PerCentNetLastTrade",, "T")/100 -> 0.025 | K57: =RTD("cqg.rtd", ,"ContractData", C57, "T_CVol",, "T") -> 1273320 | L57: 57 | M57: =RANK($J57,$J$1:J$71)+COUNTIF($J$1:J57,J57)-1 -> 9 | N57: S.US.TCB | O57: S.US.BOH | P57: =RTD("cqg.rtd", ,"ContractData",O57, "PerCentNetLastTrade",, "T")/100 -> 0.009784972216 | Q57: https://finance.yahoo.com/quote/BOH | S57: 0.009784972216 | V57: =RTD("cqg.rtd", ,"ContractData",O57, "LongDescription",, "T") -> Hawaii Corporation | Y57: 0.009784972216 | AA57: 1 | AB57: 1 | AD57: 0.009784972216
A58: Trustmark Corporation | B58: TRMK | C58: S.US.TRMK | D58: =RTD("cqg.rtd", ,"ContractData",C58, "LongDescription",, "T") -> Trustmark Corporation | E58: =RTD("cqg.rtd", ,"ContractData",C58, "Open",, "T") -> 32.56 | F58: =RTD("cqg.rtd", ,"ContractData",C58, "High",, "T") -> 33 | G58: =RTD("cqg.rtd", ,"ContractData",C58, "Low",, "T") -> 32.07 | H58: =RTD("cqg.rtd", ,"ContractData",C58, "LastTradeToday",, "T") -> 32.48 | I58: =RTD("cqg.rtd", ,"ContractData",C58, "NetLastTradeToday",, "T") -> 0.55 | J58: =RTD("cqg.rtd", ,"ContractData",C58, "PerCentNetLastTrade",, "T")/100 -> 0.01722518008 | K58: =RTD("cqg.rtd", ,"ContractData", C58, "T_CVol",, "T") -> 272251 | L58: 58 | M58: =RANK($J58,$J$1:J$71)+COUNTIF($J$1:J58,J58)-1 -> 36 | N58: S.US.TRMK | O58: S.US.CFG | P58: =RTD("cqg.rtd", ,"ContractData",O58, "PerCentNetLastTrade",, "T")/100 -> 0.008771929825 | Q58: https://finance.yahoo.com/quote/CFG | S58: 0.008771929825 | V58: =RTD("cqg.rtd", ,"ContractData",O58, "LongDescription",, "T") -> Citizens Financial Group, Inc. | Y58: 0.008771929825 | AA58: 1 | AB58: 1 | AD58: 0.008771929825
A59: United Bankshares | B59: UBSI | C59: S.US.UBSI | D59: =RTD("cqg.rtd", ,"ContractData",C59, "LongDescription",, "T") -> United Bankshares | E59: =RTD("cqg.rtd", ,"ContractData",C59, "Open",, "T") -> 40.35 | F59: =RTD("cqg.rtd", ,"ContractData",C59, "High",, "T") -> 40.65 | G59: =RTD("cqg.rtd", ,"ContractData",C59, "Low",, "T") -> 39.69 | H59: =RTD("cqg.rtd", ,"ContractData",C59, "LastTradeToday",, "T") -> 40.35 | I59: =RTD("cqg.rtd", ,"ContractData",C59, "NetLastTradeToday",, "T") -> 0.65 | J59: =RTD("cqg.rtd", ,"ContractData",C59, "PerCentNetLastTrade",, "T")/100 -> 0.01637279597 | K59: =RTD("cqg.rtd", ,"ContractData", C59, "T_CVol",, "T") -> 587466 | L59: 59 | M59: =RANK($J59,$J$1:J$71)+COUNTIF($J$1:J59,J59)-1 -> 39 | N59: S.US.UBSI | O59: S.US.BK | P59: =RTD("cqg.rtd", ,"ContractData",O59, "PerCentNetLastTrade",, "T")/100 -> 0.008102766798 | Q59: https://finance.yahoo.com/quote/BK | S59: 0.008102766798 | V59: =RTD("cqg.rtd", ,"ContractData",O59, "LongDescription",, "T") -> Bank of New York Co Inc | Y59: 0.008102766798 | AA59: 1 | AB59: 1 | AD59: 0.008102766798
A60: United Community Banks Inc | B60: UCBI | C60: S.US.UCBI | D60: =RTD("cqg.rtd", ,"ContractData",C60, "LongDescription",, "T") -> United Community Banks Inc | E60: =RTD("cqg.rtd", ,"ContractData",C60, "Open",, "T") -> 28.01 | F60: =RTD("cqg.rtd", ,"ContractData",C60, "High",, "T") -> 28.3 | G60: =RTD("cqg.rtd", ,"ContractData",C60, "Low",, "T") -> 27.44 | H60: =RTD("cqg.rtd", ,"ContractData",C60, "LastTradeToday",, "T") -> 27.97 | I60: =RTD("cqg.rtd", ,"ContractData",C60, "NetLastTradeToday",, "T") -> 0.49 | J60: =RTD("cqg.rtd", ,"ContractData",C60, "PerCentNetLastTrade",, "T")/100 -> 0.01783114993 | K60: =RTD("cqg.rtd", ,"ContractData", C60, "T_CVol",, "T") -> 304015 | L60: 60 | M60: =RANK($J60,$J$1:J$71)+COUNTIF($J$1:J60,J60)-1 -> 33 | N60: S.US.UCBI | O60: S.US.FULT | P60: =RTD("cqg.rtd", ,"ContractData",O60, "PerCentNetLastTrade",, "T")/100 -> 0.007894736842 | Q60: https://finance.yahoo.com/quote/FULT | S60: 0.007894736842 | V60: =RTD("cqg.rtd", ,"ContractData",O60, "LongDescription",, "T") -> Fulton Financial Corporation | Y60: 0.007894736842 | AA60: 1 | AB60: 1 | AD60: 0.007894736842
A61: UMB Financial Corp | B61: UMBF | C61: S.US.UMBF | D61: =RTD("cqg.rtd", ,"ContractData",C61, "LongDescription",, "T") -> UMB Financial Corp | E61: =RTD("cqg.rtd", ,"ContractData",C61, "Open",, "T") -> 74.73 | F61: =RTD("cqg.rtd", ,"ContractData",C61, "High",, "T") -> 75.33 | G61: =RTD("cqg.rtd", ,"ContractData",C61, "Low",, "T") -> 73.61 | H61: =RTD("cqg.rtd", ,"ContractData",C61, "LastTradeToday",, "T") -> 75.04 | I61: =RTD("cqg.rtd", ,"ContractData",C61, "NetLastTradeToday",, "T") -> 1.32 | J61: =RTD("cqg.rtd", ,"ContractData",C61, "PerCentNetLastTrade",, "T")/100 -> 0.01790558871 | K61: =RTD("cqg.rtd", ,"ContractData", C61, "T_CVol",, "T") -> 216167 | L61: 61 | M61: =RANK($J61,$J$1:J$71)+COUNTIF($J$1:J61,J61)-1 -> 32 | N61: S.US.UMBF | O61: S.US.CFR | P61: =RTD("cqg.rtd", ,"ContractData",O61, "PerCentNetLastTrade",, "T")/100 -> 0.007708779443 | Q61: https://finance.yahoo.com/quote/CFR | S61: 0.007708779443 | V61: =RTD("cqg.rtd", ,"ContractData",O61, "LongDescription",, "T") -> Cullen Frost Bankers Inc | Y61: 0.007708779443 | AA61: 1 | AB61: 1 | AD61: 0.007708779443
A62: Umpqua Hldgs Corp | B62: UMPQ | C62: S.US.UMPQ | D62: =RTD("cqg.rtd", ,"ContractData",C62, "LongDescription",, "T") -> Umpqua Hldgs Corp | E62: =RTD("cqg.rtd", ,"ContractData",C62, "Open",, "T") -> 18.73 | F62: =RTD("cqg.rtd", ,"ContractData",C62, "High",, "T") -> 18.82 | G62: =RTD("cqg.rtd", ,"ContractData",C62, "Low",, "T") -> 18.37 | H62: =RTD("cqg.rtd", ,"ContractData",C62, "LastTradeToday",, "T") -> 18.57 | I62: =RTD("cqg.rtd", ,"ContractData",C62, "NetLastTradeToday",, "T") -> 0.18 | J62: =RTD("cqg.rtd", ,"ContractData",C62, "PerCentNetLastTrade",, "T")/100 -> 0.009787928222 | K62: =RTD("cqg.rtd", ,"ContractData", C62, "T_CVol",, "T") -> 1426973 | L62: 62 | M62: =RANK($J62,$J$1:J$71)+COUNTIF($J$1:J62,J62)-1 -> 56 | N62: S.US.UMPQ | O62: S.US.SIVB | P62: =RTD("cqg.rtd", ,"ContractData",O62, "PerCentNetLastTrade",, "T")/100 -> 0.006473962178 | Q62: https://finance.yahoo.com/quote/SIVB | S62: 0.006473962178 | V62: =RTD("cqg.rtd", ,"ContractData",O62, "LongDescription",, "T") -> SVB Financial Group | Y62: 0.006473962178 | AA62: 1 | AB62: 1 | AD62: 0.006473962178
A63: U S Bancorp | B63: USB | C63: S.US.USB | D63: =RTD("cqg.rtd", ,"ContractData",C63, "LongDescription",, "T") -> U S Bancorp | E63: =RTD("cqg.rtd", ,"ContractData",C63, "Open",, "T") -> 52.86 | F63: =RTD("cqg.rtd", ,"ContractData",C63, "High",, "T") -> 52.99 | G63: =RTD("cqg.rtd", ,"ContractData",C63, "Low",, "T") -> 51.62 | H63: =RTD("cqg.rtd", ,"ContractData",C63, "LastTradeToday",, "T") -> 51.78 | I63: =RTD("cqg.rtd", ,"ContractData",C63, "NetLastTradeToday",, "T") -> -0.2 | J63: =RTD("cqg.rtd", ,"ContractData",C63, "PerCentNetLastTrade",, "T")/100 -> -0.003847633705 | K63: =RTD("cqg.rtd", ,"ContractData", C63, "T_CVol",, "T") -> 9967619 | L63: 63 | M63: =RANK($J63,$J$1:J$71)+COUNTIF($J$1:J63,J63)-1 -> 70 | N63: S.US.USB | O63: S.US.MTG | P63: =RTD("cqg.rtd", ,"ContractData",O63, "PerCentNetLastTrade",, "T")/100 -> 0.004472271914 | Q63: https://finance.yahoo.com/quote/MTG | S63: 0.004472271914 | V63: =RTD("cqg.rtd", ,"ContractData",O63, "LongDescription",, "T") -> MGIC Investment Corp | Y63: 0.004472271914 | AA63: 1 | AB63: 1 | AD63: 0.004472271914
A64: Valley National Bancorp | B64: VLY | C64: S.US.VLY | D64: =RTD("cqg.rtd", ,"ContractData",C64, "LongDescription",, "T") -> Valley National Bancorp | E64: =RTD("cqg.rtd", ,"ContractData",C64, "Open",, "T") -> 12.01 | F64: =RTD("cqg.rtd", ,"ContractData",C64, "High",, "T") -> 12.08 | G64: =RTD("cqg.rtd", ,"ContractData",C64, "Low",, "T") -> 11.72 | H64: =RTD("cqg.rtd", ,"ContractData",C64, "LastTradeToday",, "T") -> 11.92 | I64: =RTD("cqg.rtd", ,"ContractData",C64, "NetLastTradeToday",, "T") -> 0.22 | J64: =RTD("cqg.rtd", ,"ContractData",C64, "PerCentNetLastTrade",, "T")/100 -> 0.0188034188 | K64: =RTD("cqg.rtd", ,"ContractData", C64, "T_CVol",, "T") -> 1728738 | L64: 64 | M64: =RANK($J64,$J$1:J$71)+COUNTIF($J$1:J64,J64)-1 -> 26 | N64: S.US.VLY | O64: S.US.EWBC | P64: =RTD("cqg.rtd", ,"ContractData",O64, "PerCentNetLastTrade",, "T")/100 -> 0.003605150215 | Q64: https://finance.yahoo.com/quote/EWBC | S64: 0.003605150215 | V64: =RTD("cqg.rtd", ,"ContractData",O64, "LongDescription",, "T") -> East West Bancorp | Y64: 0.003605150215 | AA64: 1 | AB64: 1 | AD64: 0.003605150215
A65: VOYA Financial, Inc. | B65: VOYA | C65: ="S.US."&B65 -> S.US.VOYA | D65: =RTD("cqg.rtd", ,"ContractData",C65, "LongDescription",, "T") -> VOYA Financial, Inc. | E65: =RTD("cqg.rtd", ,"ContractData",C65, "Open",, "T") -> 37.74 | F65: =RTD("cqg.rtd", ,"ContractData",C65, "High",, "T") -> 37.93 | G65: =RTD("cqg.rtd", ,"ContractData",C65, "Low",, "T") -> 36.87 | H65: =RTD("cqg.rtd", ,"ContractData",C65, "LastTradeToday",, "T") -> 37.34 | I65: =RTD("cqg.rtd", ,"ContractData",C65, "NetLastTradeToday",, "T") -> 0.38 | J65: =RTD("cqg.rtd", ,"ContractData",C65, "PerCentNetLastTrade",, "T")/100 -> 0.01028138528 | K65: =RTD("cqg.rtd", ,"ContractData", C65, "T_CVol",, "T") -> 1315498 | L65: 65 | M65: =RANK($J65,$J$1:J$71)+COUNTIF($J$1:J65,J65)-1 -> 54 | N65: =C65 -> S.US.VOYA | O65: =VLOOKUP($L65,$M$1:$N$71,2,FALSE) -> S.US.NTRS | P65: =RTD("cqg.rtd", ,"ContractData",O65, "PerCentNetLastTrade",, "T")/100 -> 0.003517483964 | Q65: ="https://finance.yahoo.com/quote/"&RIGHT(O65,(LEN(O65)-5)) -> https://finance.yahoo.com/quote/NTRS | S65: =IF(P65>=0,P65,NA()) -> 0.003517483964 | T65: =IF(P65>=0,NA(),-1*P65) ->  | V65: =RTD("cqg.rtd", ,"ContractData",O65, "LongDescription",, "T") -> Northern Trust Corp | Y65: =IFERROR(S65,P65) -> 0.003517483964 | AA65: =IF(S65="NA()",0,1) -> 1 | AB65: =IFERROR(AA65,0) -> 1 | AD65: 0.003517483964
A66: Washington Federal, Inc. | B66: WAFD | C66: S.US.WAFD | D66: =RTD("cqg.rtd", ,"ContractData",C66, "LongDescription",, "T") -> Washington Federal, Inc. | E66: =RTD("cqg.rtd", ,"ContractData",C66, "Open",, "T") -> 34.15 | F66: =RTD("cqg.rtd", ,"ContractData",C66, "High",, "T") -> 34.5 | G66: =RTD("cqg.rtd", ,"ContractData",C66, "Low",, "T") -> 33.2 | H66: =RTD("cqg.rtd", ,"ContractData",C66, "LastTradeToday",, "T") -> 33.45 | I66: =RTD("cqg.rtd", ,"ContractData",C66, "NetLastTradeToday",, "T") -> -0.05 | J66: =RTD("cqg.rtd", ,"ContractData",C66, "PerCentNetLastTrade",, "T")/100 -> -0.001492537313 | K66: =RTD("cqg.rtd", ,"ContractData", C66, "T_CVol",, "T") -> 844469 | L66: 66 | M66: =RANK($J66,$J$1:J$71)+COUNTIF($J$1:J66,J66)-1 -> 67 | N66: S.US.WAFD | O66: S.US.FRC | P66: =RTD("cqg.rtd", ,"ContractData",O66, "PerCentNetLastTrade",, "T")/100 -> -0.001489425082 | Q66: https://finance.yahoo.com/quote/FRC | T66: 0.001489425082 | V66: =RTD("cqg.rtd", ,"ContractData",O66, "LongDescription",, "T") -> First Republic Bank | Y66: -0.001489425082 | AB66: 0 | AE66: 0.001489425082 | AF66: -0.001489425082
A67: Western Alliance Bancorporation | B67: WAL | C67: S.US.WAL | D67: =RTD("cqg.rtd", ,"ContractData",C67, "LongDescription",, "T") -> Western Alliance Bancorporation | E67: =RTD("cqg.rtd", ,"ContractData",C67, "Open",, "T") -> 49.63 | F67: =RTD("cqg.rtd", ,"ContractData",C67, "High",, "T") -> 50.21 | G67: =RTD("cqg.rtd", ,"ContractData",C67, "Low",, "T") -> 48.97 | H67: =RTD("cqg.rtd", ,"ContractData",C67, "LastTradeToday",, "T") -> 49.41 | I67: =RTD("cqg.rtd", ,"ContractData",C67, "NetLastTradeToday",, "T") -> 0.91 | J67: =RTD("cqg.rtd", ,"ContractData",C67, "PerCentNetLastTrade",, "T")/100 -> 0.0187628866 | K67: =RTD("cqg.rtd", ,"ContractData", C67, "T_CVol",, "T") -> 1063893 | L67: =L66+1 -> 67 | M67: =RANK($J67,$J$1:J$71)+COUNTIF($J$1:J67,J67)-1 -> 27 | N67: S.US.WAL | O67: S.US.WAFD | P67: =RTD("cqg.rtd", ,"ContractData",O67, "PerCentNetLastTrade",, "T")/100 -> -0.001492537313 | Q67: https://finance.yahoo.com/quote/WAFD | T67: 0.001492537313 | V67: =RTD("cqg.rtd", ,"ContractData",O67, "LongDescription",, "T") -> Washington Federal, Inc. | Y67: -0.001492537313 | AB67: 0 | AE67: 0.001492537313 | AF67: -0.001492537313
A68: Webster Financial Corp | B68: WBS | C68: ="S.US."&B68 -> S.US.WBS | D68: =RTD("cqg.rtd", ,"ContractData",C68, "LongDescription",, "T") -> Webster Financial Corp | E68: =RTD("cqg.rtd", ,"ContractData",C68, "Open",, "T") -> 52.89 | F68: =RTD("cqg.rtd", ,"ContractData",C68, "High",, "T") -> 53.18 | G68: =RTD("cqg.rtd", ,"ContractData",C68, "Low",, "T") -> 51.48 | H68: =RTD("cqg.rtd", ,"ContractData",C68, "LastTradeToday",, "T") -> 52.37 | I68: =RTD("cqg.rtd", ,"ContractData",C68, "NetLastTradeToday",, "T") -> 1.06 | J68: =RTD("cqg.rtd", ,"ContractData",C68, "PerCentNetLastTrade",, "T")/100 -> 0.02065874099 | K68: =RTD("cqg.rtd", ,"ContractData", C68, "T_CVol",, "T") -> 1072491 | L68: 68 | M68: =RANK($J68,$J$1:J$71)+COUNTIF($J$1:J68,J68)-1 -> 20 | N68: S.US.WBS | O68: S.US.CIT | P68: =RTD("cqg.rtd", ,"ContractData",O68, "PerCentNetLastTrade",, "T")/100 -> -0.002057189879 | Q68: https://finance.yahoo.com/quote/CIT | S68: =IF(P68>=0,P68,NA()) ->  | T68: =IF(P68>=0,NA(),-1*P68) -> 0.002057189879 | V68: =RTD("cqg.rtd", ,"ContractData",O68, "LongDescription",, "T") -> CIT Group Inc. | Y68: =IFERROR(S68,P68) -> -0.002057189879 | AA68: =IF(S68="NA()",0,1) ->  | AB68: =IFERROR(AA68,0) -> 0 | AD68: =IFERROR(S68,"") ->  | AE68: =IFERROR(T68,"") -> 0.002057189879 | AF68: =IF(AE68="","",Y68) -> -0.002057189879
A69: Wells Fargo & Co New | B69: WFC | C69: S.US.WFC | D69: =RTD("cqg.rtd", ,"ContractData",C69, "LongDescription",, "T") -> Wells Fargo & Co New | E69: =RTD("cqg.rtd", ,"ContractData",C69, "Open",, "T") -> 55.65 | F69: =RTD("cqg.rtd", ,"ContractData",C69, "High",, "T") -> 56.6 | G69: =RTD("cqg.rtd", ,"ContractData",C69, "Low",, "T") -> 55.21 | H69: =RTD("cqg.rtd", ,"ContractData",C69, "LastTradeToday",, "T") -> 55.78 | I69: =RTD("cqg.rtd", ,"ContractData",C69, "NetLastTradeToday",, "T") -> 1.45 | J69: =RTD("cqg.rtd", ,"ContractData",C69, "PerCentNetLastTrade",, "T")/100 -> 0.02668875391 | K69: =RTD("cqg.rtd", ,"ContractData", C69, "T_CVol",, "T") -> 32339538 | L69: 69 | M69: =RANK($J69,$J$1:J$71)+COUNTIF($J$1:J69,J69)-1 -> 8 | N69: S.US.WFC | O69: S.US.MTB | P69: =RTD("cqg.rtd", ,"ContractData",O69, "PerCentNetLastTrade",, "T")/100 -> -0.002907516239 | Q69: https://finance.yahoo.com/quote/MTB | T69: 0.002907516239 | V69: =RTD("cqg.rtd", ,"ContractData",O69, "LongDescription",, "T") -> M&T Bank Corp | Y69: =IFERROR(S69,P69) -> -0.002907516239 | AA69: =IF(S69="NA()",0,1) ->  | AB69: =IFERROR(AA69,0) -> 0 | AD69: =IFERROR(S69,"") ->  | AE69: =IFERROR(T69,"") -> 0.002907516239 | AF69: =IF(AE69="","",Y69) -> -0.002907516239
A70: Wintrust Financial Corp | B70: WTFC | C70: S.US.WTFC | D70: =RTD("cqg.rtd", ,"ContractData",C70, "LongDescription",, "T") -> Wintrust Financial Corp | E70: =RTD("cqg.rtd", ,"ContractData",C70, "Open",, "T") -> 76.15 | F70: =RTD("cqg.rtd", ,"ContractData",C70, "High",, "T") -> 77.12 | G70: =RTD("cqg.rtd", ,"ContractData",C70, "Low",, "T") -> 75.37 | H70: =RTD("cqg.rtd", ,"ContractData",C70, "LastTradeToday",, "T") -> 77.03 | I70: =RTD("cqg.rtd", ,"ContractData",C70, "NetLastTradeToday",, "T") -> 2.17 | J70: =RTD("cqg.rtd", ,"ContractData",C70, "PerCentNetLastTrade",, "T")/100 -> 0.02898744323 | K70: =RTD("cqg.rtd", ,"ContractData", C70, "T_CVol",, "T") -> 519129 | L70: 70 | M70: =RANK($J70,$J$1:J$71)+COUNTIF($J$1:J70,J70)-1 -> 3 | N70: S.US.WTFC | O70: S.US.USB | P70: =RTD("cqg.rtd", ,"ContractData",O70, "PerCentNetLastTrade",, "T")/100 -> -0.003847633705 | Q70: https://finance.yahoo.com/quote/USB | T70: 0.003847633705 | V70: =RTD("cqg.rtd", ,"ContractData",O70, "LongDescription",, "T") -> U S Bancorp | Y70: =IFERROR(S70,P70) -> -0.003847633705 | AA70: =IF(S70="NA()",0,1) ->  | AB70: =IFERROR(AA70,0) -> 0 | AD70: =IFERROR(S70,"") ->  | AE70: =IFERROR(T70,"") -> 0.003847633705 | AF70: =IF(AE70="","",Y70) -> -0.003847633705
A71: Zions Bancorp | B71: ZION | C71: S.US.ZION | D71: =RTD("cqg.rtd", ,"ContractData",C71, "LongDescription",, "T") -> Zions Bancorp | E71: =RTD("cqg.rtd", ,"ContractData",C71, "Open",, "T") -> 44.41 | F71: =RTD("cqg.rtd", ,"ContractData",C71, "High",, "T") -> 44.85 | G71: =RTD("cqg.rtd", ,"ContractData",C71, "Low",, "T") -> 43.38 | H71: =RTD("cqg.rtd", ,"ContractData",C71, "LastTradeToday",, "T") -> 43.99 | I71: =RTD("cqg.rtd", ,"ContractData",C71, "NetLastTradeToday",, "T") -> 1.02 | J71: =RTD("cqg.rtd", ,"ContractData",C71, "PerCentNetLastTrade",, "T")/100 -> 0.02373749127 | K71: =RTD("cqg.rtd", ,"ContractData", C71, "T_CVol",, "T") -> 4442441 | L71: 71 | M71: =RANK($J71,$J$1:J$71)+COUNTIF($J$1:J71,J71)-1 -> 12 | N71: S.US.ZION | O71: S.US.RDN | P71: =RTD("cqg.rtd", ,"ContractData",O71, "PerCentNetLastTrade",, "T")/100 -> -0.008510638298 | Q71: https://finance.yahoo.com/quote/RDN | T71: 0.008510638298 | V71: =RTD("cqg.rtd", ,"ContractData",O71, "LongDescription",, "T") -> Radian Group | Y71: =IFERROR(S71,P71) -> -0.008510638298 | AA71: =IF(S71="NA()",0,1) ->  | AB71: =IFERROR(AA71,0) -> 0 | AD71: =IFERROR(S71,"") ->  | AE71: =IFERROR(T71,"") -> 0.008510638298 | AF71: =IF(AE71="","",Y71) -> -0.008510638298
AB72: =SUM(AB1:AB71)/71 -> 0.9154929577
